Cogmind - Beta 15 @@@ ROGUE MODE // 2025.08.29 @ 21:01:49 Player: Spoodle Result: Establishing 0b11! Performance ------------- Evolutions (9) 4500 Regions Visited (35) 7000 Robots Destroyed (593) 2965 Value Destroyed (25484) 25484 Prototype IDs (391) 7820 Alien Tech Used (3) 600 Bonus (43995) 43995 TOTAL SCORE: 92364 Bonus ------- High Alert Combat Kills 3833 Follower Combat Kills 2300 Entered Garrisons 200 Network Hubs Disabled 600 Aligned with FarCom 300 Met Imprinter 300 Acquired ECA 300 Met Zhirov 300 Met Warlord at Base 500 MAIN.C Attacked Warlord 500 Warlord Defense Kills 1300 Built Enhanced Grunts 300 A7 Reached Mainframe 300 Met R17 at Cetus 500 Found Hidden Lab 3000 Met R17 at Research 2000 Met Warlord at Research 2000 Invited to Help at Command 2000 Destroyed MAIN.C Guards 500 Met MAIN.C 5000 Destroyed MAIN.C Shell 5000 Destroyed MAIN.C 10000 Met Warlord at Command 2000 Win 3000 Friendly Fire -2038 Cogmind --------- Core Integrity 926/1600 Matter 194/300 Energy 719/740 System Corruption 0% Temperature Cool (-186) Movement Walking (120) Location 0b11 Command Parts ------- > --- POWER (3) -------- Quantum Reactor Reinforced Quantum Reactor Zero-point Reactor > --- PROPULSION (7) --- Myomer Leg Centrium Leg (fused) Centrium Leg Centrium Leg Centrium Leg High-density Centrium Leg High-density Centrium Leg > --- UTILITY (11) ----- Advanced Cryofiber Web (fused) Experimental Heat Sink Huge Storage Unit Experimental Targeting Computer Experimental Core Analyzer Advanced Transmission Jammer Makeshift Cloaking Device Centrium Heavy Armor Plating Experimental System Purifier > --- WEAPON (4) ------- Advanced Variable Charge Gun Heavy Quantum Rifle Heavy Quantum Rifle Enhanced Hardcell Cannon > --- INVENTORY (25) --- Experimental Biometal Heavy Treads Enhanced Armored Heavy Treads Experimental Heat Sink Experimental Cooling System Experimental Energy Well (600) Experimental Matter Compressor (0) Long-range Terrain Scanner Graphene Brace Experimental EM Shield AEGIS Remote Shield Advanced Recalibrator Mini Drone Bay (1/3) Heavy Dispersion Rifle Hardcell Cannon Linear Accelerator Gamma Bomb Array Advanced Micro-nuke Launcher Peak State ------------ > --- POWER ------------ Quantum Reactor Reinforced Quantum Reactor Zero-point Reactor > --- PROPULSION ------- Myomer Leg Centrium Leg Centrium Leg Centrium Leg Centrium Leg High-density Centrium Leg High-density Centrium Leg > --- UTILITY ---------- Advanced Cryofiber Web Experimental Heat Sink Huge Storage Unit Experimental Targeting Computer Experimental Core Analyzer Advanced Transmission Jammer Makeshift Cloaking Device Centrium Heavy Armor Plating AEGIS Remote Shield Experimental System Purifier > --- WEAPON ----------- Advanced Variable Charge Gun Heavy Dispersion Rifle Heavy Quantum Rifle Heavy Quantum Rifle > --- INVENTORY -------- Experimental Biometal Heavy Treads Enhanced Armored Heavy Treads Experimental Heat Sink Experimental Cooling System Experimental Energy Well Long-range Terrain Scanner Graphene Brace Experimental EM Shield Advanced Recalibrator Mini Drone Bay Hardcell Cannon Linear Accelerator Enhanced Hardcell Cannon Gamma Bomb Array Advanced Micro-nuke Launcher [Rating: 229] Favorites ----------- Power Quantum Reactor Engine F-cell Engine Power Core Neutrino Core Reactor Quantum Reactor Propulsion Enhanced Biometal Leg Treads Light Treads Leg Enhanced Biometal Leg Wheel Armored Wheel Hover Unit Cooled Antigrav System Flight Unit Electron Diverter Utility Experimental Core Analyzer Device Transmission Jammer Storage High-capacity Storage Unit Processor Experimental Core Analyzer Hackware System Shield Protection Experimental Utility Shielding Weapon Cooled Plasma Rifle Energy Gun Cooled Plasma Rifle Energy Cannon Vortex Driver Ballistic Gun Precision Assault Rifle Ballistic Cannon Light Cannon Launcher Mini Grenade Launcher Special Weapon Guided Remote Datajack Impact Weapon Makeshift Hammer Slashing Weapon Molecular Scythe Special Melee Weapon Datajack Build | -11 -10 -10 -9 -9 -9 -8 -8 -7 -7 -7 -7 -7 -7 -6 -6 -6 -6 -6 -6 -5 -5 -5 -5 -4 -4 -4 -4 -4 -3 -3 -3 -3 -2 -1 -1 ------- Run | Yrd Mat Min Mat Min Exi Min Mat Fac Gar Fac Low Low Zio Pro Fac Ext Cet Arc Hub Fac Upp Upp War Pro Fac Upp Upp Zhi Pro Res Arm Lab Res Acc Com Slots Evolved 18 | . . . 2 . . . 2 2 . . . . . . 2 . . . . 2 . . . . 2 . . . . 2 . . 2 2 . Power 2 | . . . . . . . . . . . . . . . 1 . . . . . . . . . . . . . . . . . . 1 . Propulsion 5 | . . . 1 . . . 1 . . . . . . . . . . . . 1 . . . . . . . . . 1 . . . 1 . Utility 9 | . . . 1 . . . . 2 . . . . . . 1 . . . . 1 . . . . 2 . . . . 1 . . 1 . . Weapon 2 | . . . . . . . 1 . . . . . . . . . . . . . . . . . . . . . . . . . 1 . . Parts Attached 305 | 7 17 3 30 5 6 5 24 11 4 9 3 1 10 3 21 7 6 6 19 7 1 1 12 1 9 1 . 1 . 7 15 4 12 11 26 Power 33 | 1 1 1 4 . . 1 1 1 . . . . . 1 3 2 1 . 2 . . 1 3 . . . . . . 1 . . 4 2 3 Engine 12 | 1 1 1 4 . . . . 1 . . . . . 1 2 . . . . . . 1 . . . . . . . . . . . . . Core 5 | . . . . . . 1 1 . . . . . . . . 2 . . 1 . . . . . . . . . . . . . . . . Reactor 16 | . . . . . . . . . . . . . . . 1 . 1 . 1 . . . 3 . . . . . . 1 . . 4 2 3 Propulsion 80 | 2 9 1 9 1 4 3 6 3 1 2 . . 2 . 6 1 2 . 5 1 . . 4 . . . . 1 . 1 4 . 3 4 5 Treads 33 | . 3 1 8 1 1 3 6 2 1 2 . . . . 2 . 2 . . . . . . . . . . . . . . . . . 1 Leg 42 | 2 6 . . . 3 . . . . . . . 2 . 4 1 . . 5 1 . . 2 . . . . . . 1 4 . 3 4 4 Wheel 1 | . . . 1 . . . . . . . . . . . . . . . . . . . . . . . . . . . . . . . . Hover 3 | . . . . . . . . 1 . . . . . . . . . . . . . . 1 . . . . 1 . . . . . . . Flight 1 | . . . . . . . . . . . . . . . . . . . . . . . 1 . . . . . . . . . . . . Utility 93 | 2 3 1 4 3 . 1 7 3 1 3 1 1 6 2 9 1 1 1 7 1 1 . 3 1 7 1 . . . 2 5 1 3 4 7 Device 45 | 1 1 . 1 2 . . 5 . . . 1 . 1 1 2 1 . 1 3 1 1 . 3 . 5 1 . . . 1 3 . 2 2 6 Storage 6 | 1 1 1 . . . . . . . . . . . . 1 . . . 1 . . . . . . . . . . 1 . . . . . Processor 18 | . . . . . . . 1 . . 2 . 1 4 . 4 . . . 2 . . . . . 1 . . . . . 1 . 1 1 . Hackware 6 | . 1 . . . . . . 2 . 1 . . 1 . 1 . . . . . . . . . . . . . . . . . . . . Protection 18 | . . . 3 1 . 1 1 1 1 . . . . 1 1 . 1 . 1 . . . . 1 1 . . . . . 1 1 . 1 1 Artifact . | . . . . . . . . . . . . . . . . . . . . . . . . . . . . . . . . . . . . Weapon 99 | 2 4 . 13 1 2 . 10 4 2 4 2 . 2 . 3 3 2 5 5 5 . . 2 . 2 . . . . 3 6 3 2 1 11 Energy Gun 44 | 1 3 . 4 . . . 6 . . . . . . . . 1 1 2 3 5 . . 1 . 2 . . . . 3 2 1 1 1 7 Energy Cannon 5 | . . . . . . . 1 . . . . . . . . . . . 1 . . . 1 . . . . . . . . 1 . . 1 Ballistic Gun 26 | 1 . . 6 1 1 . 2 3 1 3 1 . 1 . 1 1 1 2 1 . . . . . . . . . . . . . . . . Ballistic Cannon 5 | . 1 . . . . . . . 1 . . . . . . . . . . . . . . . . . . . . . . . . . 3 Launcher 7 | . . . 2 . . . . 1 . . 1 . . . . . . . . . . . . . . . . . . . 3 . . . . Special Weapon 2 | . . . 1 . . . . . . . . . . . . . . . . . . . . . . . . . . . . 1 . . . Impact Weapon 2 | . . . . . . . 1 . . 1 . . . . . . . . . . . . . . . . . . . . . . . . . Slashing Weapon 6 | . . . . . . . . . . . . . 1 . 2 1 . . . . . . . . . . . . . . 1 . 1 . . Piercing Weapon . | . . . . . . . . . . . . . . . . . . . . . . . . . . . . . . . . . . . . Special Melee Weapon 2 | . . . . . 1 . . . . . . . . . . . . 1 . . . . . . . . . . . . . . . . . Unidentified Prototypes 59 | . . . 2 . . . . 2 . 2 1 . 5 . 7 . 4 . 6 1 . 1 8 . 2 . . 2 . 3 6 4 1 . 2 Parts Lost 16 | . . . . . 2 . . . . . . . . . . . . . 2 . . . . . . . . . . . . . . 6 6 Power 4 | . . . . . . . . . . . . . . . . . . . 1 . . . . . . . . . . . . . . 1 2 Propulsion 1 | . . . . . 1 . . . . . . . . . . . . . . . . . . . . . . . . . . . . . . Utility 5 | . . . . . 1 . . . . . . . . . . . . . . . . . . . . . . . . . . . . 1 3 Weapon 6 | . . . . . . . . . . . . . . . . . . . 1 . . . . . . . . . . . . . . 4 1 Highest Loss Streak 4 | . . . . . 1 . . . . . . . . . . . . . 1 . . . . . . . . . . . . . . 3 4 To Critical Strikes 1 | . . . . . . . . . . . . . . . . . . . . . . . . . . . . . . . . . . 1 . Average Backups 20 | 3 11 16 18 20 19 15 19 19 20 19 20 20 19 20 19 20 20 20 21 21 25 25 24 23 23 23 23 24 24 23 24 23 23 22 20 Power 1 | 1 1 . 2 1 1 1 1 . . . 1 1 1 1 . . . 1 . 1 2 2 1 1 1 1 1 1 2 2 2 2 1 . . Propulsion 3 | 1 2 4 6 7 8 5 5 5 4 4 4 6 5 4 5 4 4 5 5 2 2 2 2 3 3 3 3 3 3 1 2 2 2 1 1 Utility 8 | . 2 2 2 3 3 3 5 6 9 9 8 8 8 10 8 10 9 9 9 11 14 14 12 12 12 12 12 11 11 10 10 9 9 11 10 Weapon 6 | 1 4 7 7 6 6 6 8 7 6 6 5 5 4 5 5 6 5 5 5 6 7 7 7 7 7 7 7 7 7 7 9 7 8 8 7 Tool/Special . | . . . . . . . . . . . . . . . . . . . . . . . . . . . . . . . . . . . . Unused Backups 65 | . 5 3 8 3 . 2 3 6 2 2 . . 1 . 3 . 2 2 1 2 . . 1 . 2 . . 2 . . 2 2 2 1 8 Power 6 | . . . 2 1 . . . 1 . . . . . . . . . . 1 . . . . . . . . . . . . . . . 1 Propulsion 13 | . . 2 3 . . 1 . 3 1 . . . . . 1 . . . . . . . . . . . . . . . . . . . 2 Utility 18 | . 2 1 . . . 1 . . . 2 . . 1 . . . 2 . . 2 . . 1 . 2 . . 2 . . . . . 1 1 Weapon 24 | . 3 . 3 2 . . 3 2 1 . . . . . 1 . . 2 . . . . . . . . . . . . 2 . 1 . 4 Tool/Special 4 | . . . . . . . . . . . . . . . 1 . . . . . . . . . . . . . . . . 2 1 . . Average Slot Usage (%) 96 | . 99 100 99 100 99 99 98 99 99 99 99 100 98 100 99 100 88 86 87 99 100 100 99 100 93 93 94 93 94 94 94 85 94 93 87 Engine 4 | . 14 14 11 11 11 1 . 6 7 7 7 7 7 7 12 . . . . . . 2 3 5 5 5 5 5 5 4 4 4 1 . . Core 1 | . . . . . . 9 8 . . . . . . . . 5 6 6 5 . . . . . . . . . . . . . . . . Reactor 3 | . . . . . . . . . . . . . . . . 6 6 6 6 11 11 8 6 5 5 5 5 5 5 4 4 4 6 11 11 Treads 14 | . 17 28 29 33 29 22 35 29 30 29 30 30 27 23 21 . 10 13 11 . . . . . . . . . . . . . . . . Leg 13 | . 10 . . . 2 11 . . . . . . 2 7 4 26 4 . 2 28 29 29 28 29 26 26 26 25 26 28 28 28 26 26 24 Device 16 | . 2 14 11 11 11 11 12 12 7 14 17 22 18 21 19 20 17 19 13 22 22 22 20 20 11 20 20 18 20 21 18 18 20 17 21 Storage 6 | . 14 14 11 11 11 11 9 7 7 7 7 7 7 7 6 6 7 6 6 5 5 5 5 5 5 5 5 5 5 4 4 4 4 4 4 Processor 7 | . . . . . . . . 1 . 5 7 7 11 7 13 13 13 13 17 11 11 11 11 11 14 10 10 10 10 9 11 9 8 11 8 Hackware 1 | . 11 . . . . . . 13 15 9 4 . . . . . . . . . . . . . . . . . . . . . . . . Protection 3 | . . . 10 11 10 10 4 1 6 . . . . . . . . . 1 . . . 1 2 9 5 5 6 5 5 7 9 8 6 5 Energy Gun 7 | . 13 14 7 . . 8 15 1 . . . . . . . . 6 1 4 11 12 13 16 15 13 10 13 10 12 12 12 . 15 13 11 Ballistic Gun 9 | . 13 . 12 21 15 12 10 19 22 22 20 15 20 22 17 18 13 18 11 3 . . . . . . . . . . . . . . . Peak Build Rating 229 | 7 10 11 19 23 30 32 42 54 58 59 62 63 77 74 112 111 125 125 136 143 142 143 144 142 158 155 155 157 159 179 179 185 198 221 229 Average Rating 103 | 5 9 10 16 21 22 28 35 49 49 56 59 61 64 72 88 104 117 116 119 136 135 134 140 137 151 154 153 155 155 173 173 164 194 212 202 On Entrance 98 | . 7 9 11 19 22 28 26 40 50 48 59 61 63 72 72 100 108 125 116 117 142 135 134 144 139 144 153 155 155 156 174 169 184 196 213 Naked Turns . | . . . . . . . . . . . . . . . . . . . . . . . . . . . . . . . . . . . . Heaviest Build 223 | 14 32 52 59 62 62 57 69 75 78 75 70 70 70 82 93 89 94 94 145 150 151 150 154 140 155 155 155 155 156 165 165 161 180 206 223 Greatest Support 210 | 20 40 40 60 60 60 66 86 80 80 94 94 94 94 74 101 86 160 160 160 150 150 150 150 150 150 150 150 150 150 180 180 180 180 210 210 Greatest Overweight (x) 4 | . . 1 4 1 1 . 1 1 . . . . . 1 1 1 1 . 1 . 1 . 1 . 1 1 1 1 1 . . . . 1 1 Average Overweight (x) . | . . . 1 . . . . . . . . . . . . . . . . . . . . . . . . . . . . . . . . Largest Inventory Capacity 25 | 8 15 20 20 20 20 20 20 20 20 20 20 20 20 20 20 20 20 20 25 25 25 25 25 25 25 25 25 25 25 25 25 25 25 25 25 Average Capacity 21 | 7 12 17 19 20 19 18 20 20 20 20 20 20 20 20 20 20 20 20 23 25 25 25 25 25 25 25 25 25 25 25 25 25 25 25 25 Most Carried 25 | 6 15 17 20 20 20 17 20 20 20 20 20 20 20 20 20 20 20 20 25 25 25 25 25 25 25 25 25 25 25 25 25 25 25 25 25 Average Carried 21 | 4 11 16 18 19 19 15 19 19 19 19 19 20 19 20 19 20 19 19 21 21 25 25 24 24 24 24 24 24 25 24 24 23 24 24 21 Final Capacity 25 | 8 15 15 20 20 15 20 20 20 20 20 20 20 20 20 20 20 20 20 25 25 25 25 25 25 25 25 25 25 25 25 25 25 25 25 25 Final Carried 25 | 6 15 15 20 20 15 15 20 20 20 20 20 20 20 20 20 20 20 20 25 25 25 25 25 25 25 24 25 25 25 25 25 25 25 25 25 Class Distribution -------------------- 19% | Scavenger-Skirmisher 18% | Scavenger-Mutant 17% | Scavenger-Gunner 10% | Scavenger-Assassin 9% | Mutant 4% | Skirmisher 4% | Gunner 3% | Infiltrator-Mutant 3% | Infiltrator-Gunner 3% | Commander-Gunner Dominant Class ---------------- Mutant | -10/Materials Mutant | -10/Mines Scavenger-Mutant | -9/Materials Scavenger-Mutant | -9/Mines Scavenger-Mutant | -9/Exiles Mutant | -8/Mines Scavenger-Skirmisher | -8/Materials Scavenger-Skirmisher | -7/Factory Scavenger-Skirmisher | -7/Garrison Scavenger-Skirmisher | -7/Factory Scavenger-Skirmisher | -7/Lower Caves Scavenger-Mutant | -7/Lower Caves Scavenger-Gunner | -7/Zion Scavenger-Gunner | -6/Proximity Caves Scavenger-Gunner | -6/Factory Scavenger-Gunner | -6/Extension Commander-Gunner | -6/Cetus Scavenger-Gunner | -6/Archives Scavenger-Assassin | -6/Hub_04(d) Scavenger-Skirmisher | -5/Factory Scavenger-Mutant | -5/Upper Caves Scavenger-Mutant | -5/Upper Caves Scavenger-Gunner | -5/Warlord Scavenger-Gunner | -4/Proximity Caves Scavenger-Skirmisher | -4/Factory Infiltrator-Mutant | -4/Upper Caves Infiltrator-Gunner | -4/Upper Caves Infiltrator-Mutant | -4/Zhirov Infiltrator-Mutant | -3/Proximity Caves Scavenger-Gunner | -3/Research Scavenger-Tank | -3/Armory Scavenger-Mutant | -3/Lab Scavenger-Gunner | -2/Research Scavenger-Assassin | -1/Access Gunner | -1/Command Resources | -11 -10 -10 -9 -9 -9 -8 -8 -7 -7 -7 -7 -7 -7 -6 -6 -6 -6 -6 -6 -5 -5 -5 -5 -4 -4 -4 -4 -4 -3 -3 -3 -3 -2 -1 -1 ----------- Run | Yrd Mat Min Mat Min Exi Min Mat Fac Gar Fac Low Low Zio Pro Fac Ext Cet Arc Hub Fac Upp Upp War Pro Fac Upp Upp Zhi Pro Res Arm Lab Res Acc Com Matter Collected 15278 | 303 510 68 822 200 . 234 949 579 806 499 294 223 190 432 1262 950 128 326 1037 522 152 159 271 120 656 80 66 106 60 260 686 . 468 799 1061 Remotely . | . . . . . . . . . . . . . . . . . . . . . . . . . . . . . . . . . . . . Salvage Created 28025 | 186 953 19 1639 328 167 209 1653 622 673 667 112 270 . 437 1506 991 52 187 2075 1712 210 234 522 154 2052 113 43 325 7 948 1979 . 263 5548 1169 Parts 1262 | 13 70 3 101 24 13 20 82 54 36 34 3 10 . 27 63 58 1 13 101 75 5 19 11 8 78 8 . 2 1 33 82 . 4 190 20 Haulers Intercepted 22 | . 2 . 6 . . . 4 1 . 1 . . . . 2 . . . 2 1 . . . . . . . . . 1 . . 1 1 . Recyclers Shooed 16 | . 3 . . . . . 2 2 . . . . . . 1 1 . . . 1 . . . . 3 . . . . 1 . . . 2 . Parts Field Recycled . | . . . . . . . . . . . . . . . . . . . . . . . . . . . . . . . . . . . . Retrieved Matter . | . . . . . . . . . . . . . . . . . . . . . . . . . . . . . . . . . . . . Parts Self-Destructed 77 | . . . . . . . . . . . 5 10 1 30 . . . . . . 1 18 . 1 . 8 . 2 1 . . . . . . Prevented 9 | . . . . . . . . . . . . . . . . . . . . . . . . 9 . . . . . . . . . . . Kills | -11 -10 -10 -9 -9 -9 -8 -8 -7 -7 -7 -7 -7 -7 -6 -6 -6 -6 -6 -6 -5 -5 -5 -5 -4 -4 -4 -4 -4 -3 -3 -3 -3 -2 -1 -1 ------- Run | Yrd Mat Min Mat Min Exi Min Mat Fac Gar Fac Low Low Zio Pro Fac Ext Cet Arc Hub Fac Upp Upp War Pro Fac Upp Upp Zhi Pro Res Arm Lab Res Acc Com Combat Hostiles Destroyed 421 | . 20 1 33 11 5 3 19 13 23 8 3 7 . 12 21 16 . 1 20 19 2 6 11 3 30 2 . . 1 8 35 . 3 76 9 Guns 299 | . 19 . 22 5 4 1 13 5 9 7 2 7 . 7 20 16 . 1 12 13 2 6 9 3 24 2 . . 1 5 26 . 3 51 4 Cannons 14 | . . 1 3 . . . . . . . . . . . . . . . . . . . . . . . . . . . . . . 6 4 AOE 77 | . . . 8 6 1 2 6 8 14 1 1 . . 5 1 . . . 8 5 . . . . . . . . . . 2 . . 9 . Classes Destroyed 25 | 2 6 1 3 . 1 . 4 . 1 . 1 . . 2 . . . . 1 . . . 2 . . . . . . . . . . . 1 Worker 38 | . 5 . 1 . . 4 3 7 . 3 . . . . . . . . 6 3 . . . . 1 . . . . 2 . . . 2 1 Builder 21 | . . . 1 . . . 2 . . . . . . . 2 1 . . 3 . . . . . 6 . . . . 1 . . . 5 . Tunneler 12 | 5 . . . . . 2 1 1 . . . . . . . . . . 2 . . . . . . . . . . 1 . . . . . Hauler 22 | . 2 . 6 . . . 4 1 . 1 . . . . 2 . . . 2 1 . . . . . . . . . 1 . . 1 1 . Recycler 28 | 1 1 . 1 2 . 2 5 2 . 3 . . . . 2 1 . . 3 2 . . . . . . . . . 1 . . . 1 1 Mechanic 6 | . . . . . . . 1 1 . . . . . . . . . . . 1 . . 1 . . . . . . . . . . 2 . Operator 12 | . 2 . . . . . 1 . . . . . . . . 1 . 3 1 . . . . . 1 . . . . 1 1 . . 1 . Drone 3 | . . . . . . . . . . . . . . 2 . . . . . . . . . . . . . . 1 . . . . . . Watcher 29 | . 3 . 5 . . . 2 . . . . . . . 1 . . . . 4 . . . . 3 . . . . 1 . . 1 5 4 Swarmer 112 | . 9 . 8 7 . 3 . 8 17 2 3 3 . 3 7 4 . . . . . 5 . . 6 . . . . . 9 . . 14 4 Saboteur 5 | . . . . . . . . . . . . . . . . . . . 1 . . . . . . . . . . . 2 . . 2 . Grunt 126 | . 11 . 13 4 3 . 11 2 3 3 . 4 . 4 11 4 . . 6 12 . . 5 1 3 . . . . 4 4 . 3 14 1 Brawler 6 | . . . 2 . . . 1 . . . . . . . . . . . 1 . . . . . . . . . . . . . . 2 . Duelist 5 | . . . . . . . . . . . . . . . . . . . . . . . 1 . . . . . . . 1 . . 3 . Protector 5 | . . . . . . . 1 . . . . . . . . . . . 2 . . . 2 . . . . . . . . . . . . Sentry 43 | . . . 10 . . . 3 1 2 2 . . . 1 . 7 . 1 . 1 . . . . 5 . . . . 2 2 . . 6 . Demolisher 4 | . . 1 . . 1 . . . . . . . . . . . . . . . . . 1 . . . . . . . 1 . . . . Specialist 5 | . . . . . . . 2 . . . . . . . . . . . . . . . . . . . . . . . 3 . . . . Hunter 25 | . . . . . . . . . 1 . . . . . . . . . 2 . . 1 1 2 5 . . . . 2 . . . 11 . Programmer 66 | . . . . . 1 . . 2 . 1 . . . 1 3 . . . 2 6 . . . . 11 2 . . . . 13 . . 24 . Heavy 1 | . . . . . . . 1 . . . . . . . . . . . . . . . . . . . . . . . . . . . . Behemoth 2 | . . . . . . . . . . . . . . 1 . 1 . . . . . . . . . . . . . . . . . . . Enhanced Grunt 1 | . . . . . . . . . . . . . . . . . . . . . . . . . . . . 1 . . . . . . . Lightning 6 | . . . . . . . . . . . . . . . . . . . 6 . . . . . . . . . . . . . . . . Combat Programmer 2 | . . . . . . . . . . . . . . . . . . . . . . . . . . . . . . . . . . . 2 Striker 1 | . . . . . . . . . . . . . . . . . . . . . . . 1 . . . . . . . . . . . . Packrat 3 | . . . . . . . . . . . . . . . . . . . . . 1 1 . . . . 1 . . . . . . . . Samaritan 2 | . . . . . . . . . . . 1 . . . . . . . . . 1 . . . . . . . . . . . . . . Thug 3 | . . . . . . . . . . . . . . . . . 1 . . . 2 . . . . . . . . . . . . . . Butcher 1 | . . . . . . . . . . . . . . . . . . . . . . . . . . . . . . . . . . . 1 Troll 1 | . . . . . . . . . . . . . . . . . . . . . . . . . . . . . . . . . . . 1 Best Kill Streak 16 | 4 8 1 8 4 2 3 9 8 4 2 3 7 . 4 7 6 . 2 12 5 1 5 5 3 6 2 . . 1 4 6 . 3 16 4 Combat Bots Only 14 | . 3 1 7 4 2 3 8 5 4 1 3 7 . 4 7 5 . 1 11 5 1 5 5 3 5 2 . . 1 4 6 . 3 14 4 Max Kills in Single Turn 7 | 1 2 1 3 3 2 2 2 6 3 2 1 2 . 2 2 2 1 1 7 5 1 2 2 1 2 1 1 1 1 1 2 . 1 4 1 Gunslinging 1 | . . . . . 1 . . . . . . 1 . . 1 1 . . 1 . . 1 1 . 1 . . . . . 1 . . 1 . Exploded 5 | . . . 2 3 1 2 2 4 3 1 1 . . 2 1 . . . 2 5 . . . . . . . . . . 1 . . 3 . Melee . | . . . . . . . . . . . . . . . . . . . . . . . . . . . . . . . . . . . . Uniques/NPCs Destroyed 2 | . . . . . . . . . . . . . . . . . . . . . . . . . . . . . . . . . . . 2 MAIN.C Shell (-1/Command) MAIN.C (-1/Command) Combat | -11 -10 -10 -9 -9 -9 -8 -8 -7 -7 -7 -7 -7 -7 -6 -6 -6 -6 -6 -6 -5 -5 -5 -5 -4 -4 -4 -4 -4 -3 -3 -3 -3 -2 -1 -1 -------- Run | Yrd Mat Min Mat Min Exi Min Mat Fac Gar Fac Low Low Zio Pro Fac Ext Cet Arc Hub Fac Upp Upp War Pro Fac Upp Upp Zhi Pro Res Arm Lab Res Acc Com Hostile Shots Fired 2183 | . 119 3 112 26 110 1 58 41 119 38 21 19 . 57 97 77 . . 144 64 8 13 24 24 162 6 . . . 12 173 . 2 455 198 Missed 692 | . 39 . 37 9 45 . 18 14 41 15 5 4 . 20 21 21 . . 22 29 3 5 10 14 71 5 . . . 7 59 . 1 135 42 Intercepted 18 | . . . . . . . . . . . . . . . . . . . . . . . . . . . . . . . . . . . 18 Deflected 5 | . . . . . . . . . . . . . . . . . . . . . . . . . . . . . . . . . . 5 . Hits 1491 | . 80 3 75 17 65 1 40 27 78 23 16 15 . 37 76 56 . . 122 35 5 8 14 10 91 1 . . . 5 114 . 1 320 156 Melee 5 | . . . 1 . . . . . . . . . . . . . . . . . . . . . . . . . . . . . . 4 . Projectile 1486 | . 80 3 74 17 65 1 40 27 78 23 16 15 . 37 76 56 . . 122 35 5 8 14 10 91 1 . . . 5 114 . 1 316 156 AOE 16 | . . 4 . . 4 . . . . . . . . . . . . . . . . . . . . . . . . . . . 2 1 5 Critical Strikes 79 | . . . 2 . 2 . 4 . . . . . . 2 5 . 1 . 16 2 . . . . 5 1 . . . . 9 . . 19 11 Actively Blocked 6 | . . . . . . . . . . . . . . . . . . . . . . . . . . . . . . . . . . 1 5 Part Disruptions 10 | . . . . . . . . . . . . . . . . . . . . . . . 1 . 1 . . . . . . . . 1 7 Damage Taken 21018 | 1 759 152 1023 150 1004 6 856 325 858 371 377 229 . 592 975 427 29 . 1825 364 53 73 124 104 1465 4 . . . 34 750 . 40 3422 4626 Core 1959 | 1 132 20 84 25 184 . 153 34 135 6 . 13 . 25 87 32 . . 44 102 . . . 13 125 . . . . . 70 . . 131 543 Absorbed by Shields 6679 | . . . . . . . . . . . . . . 37 355 131 . . 471 180 53 24 128 112 619 . . . . 37 608 . 43 2766 1115 Reduced by Siege Mode 338 | . . . . . . . . . . . . . . . . . . . 180 . . . . . . . . . . . . . . . 158 Redirected to Shielding 398 | . . . . . . . . . . . . . . . . . . . . . . . . 9 133 . . . . . 22 . . 138 96 Ignored by Resistances 4164 | . . . . . . . 89 26 . . . . . . . . . . 1626 252 . . . . 287 14 . . . . 840 . . 1030 . Regen/Repaired (Parts) 2607 | . 65 . 88 . . . . 248 . 148 . . . . . . . . . . . . 64 . 127 . . . . 250 19 . 17 1211 370 Core Remaining (%) 73 | 99 . 38 . . . 26 72 . . . . . . 69 . . . . 80 . . . . 88 . . . . 89 . . 85 100 . 57 Volleys Fired 1217 | 12 97 4 97 15 26 17 81 18 65 22 10 16 . 25 53 46 2 16 84 45 5 5 23 9 79 2 13 1 2 27 70 . 17 150 63 Largest 4 | 2 2 2 2 2 2 2 3 3 3 3 3 3 . 3 3 3 1 3 3 3 3 3 3 3 3 3 3 1 3 3 3 . 4 4 4 Hottest 400 | 60 86 86 112 46 46 79 172 84 84 84 84 84 . 84 86 88 30 146 175 175 120 72 72 72 168 72 72 24 72 72 216 . 96 319 400 Shots Fired 2999 | 24 188 7 180 27 45 21 196 47 113 64 29 38 . 67 156 139 2 48 191 129 15 15 59 25 225 6 15 1 6 78 203 . 53 456 131 Gun 2815 | 24 186 3 151 24 44 20 189 44 96 63 28 38 . 63 155 139 2 48 179 129 15 15 59 25 225 6 15 1 6 78 200 . 49 440 56 Cannon 117 | . 2 4 21 . . . 1 . . . . . . . . . . . . . . . . . . . . . . . . . . 14 75 Launcher 61 | . . . 6 3 1 1 6 3 17 1 1 . . 4 1 . . . 12 . . . . . . . . . . . 3 . . 2 . Special 6 | . . . 2 . . . . . . . . . . . . . . . . . . . . . . . . . . . . . 4 . . Kinetic 1164 | 12 96 4 102 24 44 4 73 44 96 63 28 38 . 63 155 139 2 44 69 29 . . . . . . . . . . . . . . 35 Thermal 1674 | 12 92 3 72 . . 16 89 . . . . . . . . . . 4 110 100 15 15 59 25 225 6 15 1 6 78 200 . 49 454 28 Explosive 60 | . . . 6 3 1 1 6 3 17 1 1 . . 4 1 . . . 12 . . . . . . . . . . . 2 . . 2 . Electromagnetic 66 | . . . . . . . 28 . . . . . . . . . . . . . . . . . . . . . . . 1 . . . 37 Entropic 31 | . . . . . . . . . . . . . . . . . . . . . . . . . . . . . . . . . . . 31 Robot Hit Streak 49 | 6 10 2 17 7 10 5 10 16 12 11 9 10 . 16 17 14 1 10 10 22 7 6 18 15 17 8 9 . 10 16 18 . 15 19 49 Robot Miss Streak 4 | 2 4 2 3 3 2 1 4 2 3 3 2 2 . 1 2 2 1 3 4 2 2 1 1 2 3 . . . . 3 3 . 2 3 2 Penetration Max 1 | . . . . . . . 1 . . 1 . . . . . . . 1 . . . . . . . . . . . . . . . . . Secondary Targets 64 | . 3 . 2 . 1 . 3 . 1 . . 4 . 1 4 2 . . 3 4 . 1 5 . 3 1 . . . . 8 . 2 15 1 Max Gunslinging Chain 2 | . 1 . 1 . 1 . 1 . 1 . . 1 . 1 1 1 . . 1 1 . 1 2 . 1 1 . . . . 2 . 1 2 1 Shots Hit Robots 1987 | 15 114 3 128 17 32 12 120 32 54 36 22 23 . 48 119 94 1 33 116 96 9 9 45 12 147 4 1 10 1 56 148 . 39 294 97 Core Hits 1079 | 7 48 2 60 13 7 12 61 30 49 22 7 12 . 29 60 46 1 17 102 49 6 8 23 6 74 4 2 5 1 31 69 . 14 156 46 Critical Kills 33 | . . . . . . . 2 . 1 1 . . . . 5 4 . 1 5 2 . . . . . . . . . . . . . 11 1 Critical Parts Destroyed 41 | . . . . . . . . . 2 3 . . . 2 4 2 . 4 11 2 . . . . . . . . . . . . . 11 . Critical Strikes 157 | . 3 . 4 . . . 10 . 3 4 . . . 2 9 7 . 6 16 7 1 . 4 3 12 . . . . 8 11 . 2 42 3 Burn 78 | . 3 . 4 . . . 7 . . . . . . . . . . 1 . 3 1 . 4 3 12 . . . . 8 11 . 2 19 . Meltdown 1 | . . . . . . . . . . . . . . . . . . . . . . . . . . . . . . . . . . . 1 Destroy 75 | . . . . . . . 2 . 3 4 . . . 2 9 7 . 5 16 4 . . . . . . . . . . . . . 23 . Blast 2 | . . . . . . . . . . . . . . . . . . . . . . . . . . . . . . . . . . . 2 Corrupt 1 | . . . . . . . 1 . . . . . . . . . . . . . . . . . . . . . . . . . . . . Melee Attacks 225 | . . . . . 3 . 3 8 . 2 4 3 1 . 25 6 . 1 13 8 15 14 . 5 31 4 10 10 4 11 8 7 3 26 . Impact 21 | . . . . . . . 3 8 . 2 4 3 1 . . . . . . . . . . . . . . . . . . . . . . Slashing 200 | . . . . . . . . . . . . . . . 25 6 . . 13 8 15 14 . 5 31 4 10 10 4 11 8 7 3 26 . Piercing . | . . . . . . . . . . . . . . . . . . . . . . . . . . . . . . . . . . . . Sneak Attacks 28 | . . . . . 3 . 1 3 . . 1 . . . 3 . . 1 3 1 . 1 . . 4 . . 2 . 4 . . . 1 . Combat Hostiles . | . . . . . . . . . . . . . . . . . . . . . . . . . . . . . . . . . . . . Follow-up Attacks . | . . . . . . . . . . . . . . . . . . . . . . . . . . . . . . . . . . . . Damage Inflicted 69006 | 182 1469 86 2506 802 602 497 3379 1729 2333 980 603 440 . 1396 2708 2126 23 966 6172 3474 329 303 1048 285 4486 116 58 1061 24 1908 4831 . 896 14139 7049 Guns 44508 | 180 1426 15 1812 244 531 197 2297 595 871 838 434 440 . 938 2440 2097 23 962 2681 2512 191 205 1048 285 3968 116 24 . 24 1325 4411 . 896 9455 1027 Cannons 6648 | . 38 40 199 . . . . . . . . . . . . . . . . . . . . . . . . . . . . . . 1920 4451 Explosions 13126 | . . . 419 462 71 260 832 767 1462 129 75 . . 458 27 . . . 3114 740 . . . . . . . . . . 420 . . 2409 1481 Melee 3502 | . . . . . . . 135 347 . . 94 . . . 241 . . . 311 104 . 98 . . 450 . . 1061 . 499 . . . 162 . Ramming 1222 | 2 5 31 76 96 . 40 115 20 . 13 . . . . . 29 . 4 66 118 138 . . . 68 . 34 . . 84 . . . 193 90 Kinetic 15948 | 123 865 40 1168 244 531 60 968 595 871 838 434 440 . 938 2440 2097 23 893 840 473 . . . . . . . . . . . . . . 1067 Thermal 35285 | 57 599 15 843 . . 226 1010 . . . . . . . . . . 69 1841 2779 191 205 1048 285 3968 116 24 . 24 1325 4411 . 896 12643 2710 Explosive 8188 | . . . 419 462 71 171 719 767 1462 129 75 . . 458 27 . . . 1888 . . . . . . . . . . . 399 . . 1141 . Electromagnetic 2430 | . . . . . . . 432 . . . . . . . . . . . 1226 . . . . . . . . . . . 21 . . . 751 Impact 576 | . . . . . . . 135 347 . . 94 . . . . . . . . . . . . . . . . . . . . . . . . Slashing 2926 | . . . . . . . . . . . . . . . 241 . . . 311 104 . 98 . . 450 . . 1061 . 499 . . . 162 . Piercing . | . . . . . . . . . . . . . . . . . . . . . . . . . . . . . . . . . . . . Entropic 2431 | . . . . . . . . . . . . . . . . . . . . . . . . . . . . . . . . . . . 2431 Highest Corruption 20 | . . . . . 3 3 3 . . 4 4 4 4 . 1 1 1 1 20 . . . . . . . . . . . 3 3 . 10 19 Average Corruption 4 | . . . . . 2 3 3 . . 4 4 4 4 . 1 1 1 1 15 . . . . . . . . . . . 2 3 . 5 12 Corruption Purged 20 | . . . . . . . . . . . . . . . . . . 1 . . . . . . . . . . . . . . . . 19 Corruption Blocked . | . . . . . . . . . . . . . . . . . . . . . . . . . . . . . . . . . . . . Effects 264 | . . . . . 1 6 6 . . 1 18 21 2 . 10 9 5 2 30 . . . . . . . . . . . 21 12 . 51 69 Message Errors 67 | . . . . . . 3 . . . . 4 8 . . 3 4 3 1 11 . . . . . . . . . . . 6 2 . 11 11 Matter Fused 57 | . . . . . 1 . 1 . . . 3 5 . . 5 . 1 1 3 . . . . . . . . . . . 3 2 . 7 25 Heat Flow Errors 24 | . . . . . . 1 2 . . . 1 1 1 . . . . . 2 . . . . . . . . . . . 2 1 . 5 8 Energy Discharges 42 | . . . . . . 1 1 . . 1 4 3 1 . 2 1 1 . 3 . . . . . . . . . . . 3 6 . 7 8 Parts Rejected 3 | . . . . . . . . . . . . . . . . . . . . . . . . . . . . . . . 1 . . 1 1 Parts Fused 4 | . . . . . . . . . . . 1 . . . . . . . . . . . . . . . . . . . . . . . 3 Data Loss (minor) 20 | . . . . . . . . . . . 2 2 . . . 2 . . 4 . . . . . . . . . . . 2 . . 7 1 Data Loss (major) 12 | . . . . . . . 1 . . . . . . . . . . . 3 . . . . . . . . . . . 1 1 . 3 3 Misfires 19 | . . . . . . 1 . . . . 2 2 . . . 1 . . 1 . . . . . . . . . . . 2 . . 6 4 Alerts 6 | . . . . . . . . . . . . . . . . 1 . . . . . . . . . . . . . . . . . 2 3 Weapon Failures 10 | . . . . . . . 1 . . . 1 . . . . . . . 3 . . . . . . . . . . . 1 . . 2 2 Overload Shots 138 | . . . . . . . . . . . . . . . . . . . . . 1 . 5 1 10 . 1 . . . 18 . 1 98 3 Effects 10 | . . . . . . . . . . . . . . . . . . . . . . . . . 1 . . . . . 1 . . 8 . Energy Bleed 5 | . . . . . . . . . . . . . . . . . . . . . . . . . 1 . . . . . . . . 4 . Heat Surge 4 | . . . . . . . . . . . . . . . . . . . . . . . . . . . . . . . . . . 4 . Short Circuit 1 | . . . . . . . . . . . . . . . . . . . . . . . . . . . . . . . 1 . . . . Overflow Damage 2597 | . . 15 . 39 . 33 17 150 33 . 58 . . . 81 . . . 193 115 21 . . . 280 . . 440 . 232 . . . 852 38 Projectiles 421 | . . 15 . . . . . . . . . . . . . . . . . . . . . . . . . . . . . . . 406 . Explosions 742 | . . . . 39 . 33 17 66 33 . . . . . . . . . 84 33 . . . . . . . . . . . . . 437 . Melee 1434 | . . . . . . . . 84 . . 58 . . . 81 . . . 109 82 21 . . . 280 . . 440 . 232 . . . 9 38 Knockbacks 20 | . 1 2 2 2 . 1 . 1 . . . . . . . . . 1 . 2 . . . . 2 . . . . 1 . . . 1 4 Impact 14 | . . 1 1 2 . 1 . 1 . . . . . . . . . 1 . 2 . . . . 1 . . . . 1 . . . 1 2 Kinetic 5 | . 1 1 1 . . . . . . . . . . . . . . . . . . . . . . . . . . . . . . . 2 Secondary 1 | . . . . . . . . . . . . . . . . . . . . . . . . . 1 . . . . . . . . . . Self-Inflicted Damage 512 | 1 . . 34 . . . 37 30 78 . . . . . . . . . 202 . . . . . . . . . . . 21 . . 109 . Shots 11 | . . . 1 . . . 1 1 2 . . . . . . . . . 3 . . . . . . . . . . . 1 . . 2 . Rammed 54 | 1 . 5 11 7 . 2 13 4 . 2 . . . . . . . 2 7 . . . . . . . . . . . . . . . . Targets Rammed 101 | 1 1 5 12 8 . 5 14 5 . 2 . . . . . 1 . 2 8 7 4 . . . 4 . 3 . . 3 . . . 12 4 Kicked 41 | . 1 . . . . 2 . . . . . . . . . 1 . . . 7 4 . . . 4 . 3 . . 3 . . . 12 4 Crushed 6 | . . . 1 1 . 1 1 1 . . . . . . . . . . 1 . . . . . . . . . . . . . . . . Highest Temperature 451 | . 28 . 78 7 16 236 282 108 134 397 83 261 181 146 282 334 11 305 271 139 . . 32 14 225 6 26 . 26 256 233 104 18 436 451 Average Temperature 75 | . 11 . 20 4 8 127 90 32 38 78 32 107 90 43 89 80 11 112 94 46 . . 18 10 32 3 8 . 9 127 45 61 18 104 151 Received Heat Transfer 2965 | . 264 . 375 27 138 . 324 105 171 27 36 63 . 33 344 114 . . 237 62 20 . 28 8 70 . . . . 5 76 . 4 249 185 Effects 2 | . . . . . . . . . . . . . . . . . . . 1 . . . . . . . . . . . . . . 1 . Energy Bleed 2 | . . . . . . . . . . . . . . . . . . . 1 . . . . . . . . . . . . . . 1 . Siege Activations 3 | . . . . . . . . . . . . . . . . . . . 2 . . . . . . . . . . . . . . . 1 Total Turns 221 | . . . . . . . . . . . . . . . . . . . 157 . . . . . . . . . . . . . . . 64 Longest Duration 116 | . . . . . . . . . . . . . . . . . . . 116 . . . . . . . . . . . . . . . 64 Martial Activations . | . . . . . . . . . . . . . . . . . . . . . . . . . . . . . . . . . . . . Shielding Activations 5 | . . . . . . . . . . . . . . . . . . . . . . . . . . . . . . . . . . 5 . Total Turns 78 | . . . . . . . . . . . . . . . . . . . . . . . . . . . . . . . . . . 78 . Longest Duration 24 | . . . . . . . . . . . . . . . . . . . . . . . . . . . . . . . . . . 24 . Robots Disrupted . | . . . . . . . . . . . . . . . . . . . . . . . . . . . . . . . . . . . . Combat Hostiles . | . . . . . . . . . . . . . . . . . . . . . . . . . . . . . . . . . . . . Robots Corrupted 8 | . . . . . . . . 1 . . 1 . . . . . . . . . 1 . . . . . . . . 1 . . . 1 3 Combat Hostiles . | . . . . . . . . . . . . . . . . . . . . . . . . . . . . . . . . . . . . Parts Fried 25 | . . . . . . . 1 . . . 4 . . . . 1 . . 10 . 1 . . . . . . . . . . . . 3 5 Impact Corruptions 17 | . . . . . . . . 3 . . 6 . . . . . . . . 1 3 . . . . . . . . 2 . . . 1 1 Robots Melted 31 | . 1 . . . . . . . . . . . . . . . . . . 1 . . 2 . 6 . . . . 3 7 . . 10 1 Combat Hostiles 31 | . 1 . . . . . . . . . . . . . . . . . . 1 . . 2 . 6 . . . . 3 7 . . 10 1 Parts Melted 246 | . 2 . 2 . . . 6 . . . . . . 1 . . . 1 6 19 1 2 7 2 43 1 . . . 13 51 . 2 87 . Heat Transferred 62442 | 125 1725 37 2220 . . 396 2405 . . . . . . . . . . 185 2223 4319 500 400 2333 900 8810 200 50 . 50 3486 9320 . 1960 19158 1640 Parts Sabotaged . | . . . . . . . . . . . . . . . . . . . . . . . . . . . . . . . . . . . . Parts Stolen . | . . . . . . . . . . . . . . . . . . . . . . . . . . . . . . . . . . . . Parts Stripped . | . . . . . . . . . . . . . . . . . . . . . . . . . . . . . . . . . . . . Power Chain Reactions 2 | . . . . . . . . . . . . . . . . . . . 2 . . . . . . . . . . . . . . . . Latent Energy Used 200 | . . . . . . . 200 . . . . . . . . . . . . . . . . . . . . . . . . . . . . LE Corruption 3 | . . . . . . . 3 . . . . . . . . . . . . . . . . . . . . . . . . . . . . Alert | -11 -10 -10 -9 -9 -9 -8 -8 -7 -7 -7 -7 -7 -7 -6 -6 -6 -6 -6 -6 -5 -5 -5 -5 -4 -4 -4 -4 -4 -3 -3 -3 -3 -2 -1 -1 ------- Run | Yrd Mat Min Mat Min Exi Min Mat Fac Gar Fac Low Low Zio Pro Fac Ext Cet Arc Hub Fac Upp Upp War Pro Fac Upp Upp Zhi Pro Res Arm Lab Res Acc Com Maximum Alert Level 4 | . 1 . 1 1 . . 2 1 4 3 . . . . 1 2 1 1 4 3 . . . . 2 . . . . . 2 . . 4 3 Low Security (%) 51 | 100 98 100 60 83 . 100 79 56 1 . . . . . 77 66 51 95 12 . . . . . 63 . . . . 100 18 . 100 25 . Level 1 17 | . 1 . 39 16 . . 10 43 18 . . . . . 22 15 48 4 46 24 . . . . 21 . . . . . 26 . . 6 . Level 2 16 | . . . . . . . 9 . 16 . . . . . . 17 . . 18 71 . . . . 14 . . . . . 54 . . 20 77 Level 3 10 | . . . . . . . . . 45 99 . . . . . . . . 6 4 . . . . . . . . . . . . . 26 22 Level 4 3 | . . . . . . . . . 18 . . . . . . . . . 15 . . . . . . . . . . . . . . 20 . Level 5 . | . . . . . . . . . . . . . . . . . . . . . . . . . . . . . . . . . . . . High Security . | . . . . . . . . . . . . . . . . . . . . . . . . . . . . . . . . . . . . Max Security . | . . . . . . . . . . . . . . . . . . . . . . . . . . . . . . . . . . . . Peak Influence 1426 | 10 201 60 339 264 . 78 443 312 1283 925 . . . . 356 525 334 211 1378 854 . . . . 565 . . . . 142 517 . 150 1426 941 Initial 908 | . 3 60 . 118 . . 26 194 188 673 . . . . . 73 272 30 5 674 . . . . . . . . . . 65 . . . 908 Average 309 | 2 123 6 186 99 . 15 159 184 776 830 . . . . 139 188 197 118 526 469 . . . . 182 . . . . 29 346 . 34 661 656 Influence Increases 17676 | 30 682 85 1144 296 100 217 865 661 1095 666 127 140 . 356 652 1029 355 225 2017 893 . 170 270 70 1028 50 . 15 5 334 998 . 243 2548 310 Destroy 0b10 Robot/C 9220 | . 400 40 660 220 100 60 360 320 500 220 100 140 . 260 420 620 160 80 580 380 . 120 180 60 600 40 . . . 160 700 . 60 1520 160 Destroy 0b10 Robot/NC 955 | 30 65 . 70 10 . 40 100 60 10 45 . . . 10 35 35 10 15 110 55 . . 15 . 55 . . 15 5 40 . . 10 85 30 Destroy Leader 1710 | . 90 10 212 40 . 10 102 72 20 72 20 . . 30 74 54 . . 120 70 . 20 . 10 146 10 . . . 44 130 . 14 322 18 Allied During Kill 1043 | . . 2 . . . . . 13 61 93 7 . . 41 . 245 167 95 319 . . . . . . . . . . . . . . . . Successful Hack 610 | . 22 . 25 . . . 11 62 35 38 . . . . 7 . . . . 184 . . . . 125 . . . . 76 4 . . 21 . Select Force Hacks 240 | . 60 . 90 . . . 60 30 . . . . . . . . . . . . . . . . . . . . . . . . . . . Disable Machine 1125 | . 15 30 45 . . 90 90 30 60 150 . . . . . 15 . 30 315 75 . . . . 15 . . . . . 45 . . 60 60 Anti-Garrison Action 450 | . . . . . . . . . 300 . . . . . . . . . . . . . . . . . . . . . . . 150 . . Destroy Structure 1588 | . . 3 42 26 . 17 127 29 109 48 . . . . 41 15 3 5 468 54 . . . . 72 . . . . 14 74 . 9 405 27 Partial Spotted 15 | . . . . . . . . . . . . . . . . . . . . 15 . . . . . . . . . . . . . . . Lose Combat Pursuer 720 | . 30 . . . . . 15 45 . . . . . 15 75 45 15 . 105 60 . 30 75 . 15 . . . . . 45 . . 135 15 Influence Decreases 17188 | 25 531 241 838 577 117 158 504 820 81 1100 747 253 116 356 501 693 765 285 656 1784 487 102 146 262 485 557 36 15 5 208 611 513 243 1128 1242 Entered New Map 4552 | . 2 96 . 188 25 8 41 234 81 610 315 44 116 . . 78 215 47 12 704 181 . 68 192 . 201 8 . . . 61 513 . . 512 Time Decay 10173 | 25 529 125 538 389 72 150 463 546 . 470 392 209 . 299 344 546 310 238 524 470 306 102 78 70 475 356 28 15 5 208 530 . 243 608 510 Lost Part 160 | . . . . . 20 . . . . . . . . . . . . . 20 . . . . . . . . . . . . . . 60 60 Lost Ally 653 | . . 20 . . . . . 40 . 20 40 . . 57 7 69 240 . 100 10 . . . . 10 . . . . . 20 . . 10 10 Purge Threat 1650 | . . . 300 . . . . . . . . . . . 150 . . . . 600 . . . . . . . . . . . . . 450 150 Squads Dispatched 106 | . 6 . 5 1 . . 13 10 . 5 . . . . 6 2 . . 9 4 . . . . 6 . . . . 6 5 . 1 16 11 Investigation 27 | . 4 . 4 1 . . 4 4 . 1 . . . . 3 . . . . 1 . . . . 1 . . . . 2 . . . 2 . Extermination 33 | . . . . . . . . 3 . 2 . . . . 3 . . . 3 2 . . . . 4 . . . . . 4 . . 9 3 Reinforcement 28 | . 2 . 1 . . . 3 . . 2 . . . . . 2 . . 4 1 . . . . 1 . . . . 4 1 . 1 1 5 Assault 11 | . . . . . . . 2 . . . . . . . . . . . 2 . . . . . . . . . . . . . . 4 3 Garrison 7 | . . . . . . . 4 3 . . . . . . . . . . . . . . . . . . . . . . . . . . . Intercept . | . . . . . . . . . . . . . . . . . . . . . . . . . . . . . . . . . . . . Searches Triggered . | . . . . . . . . . . . . . . . . . . . . . . . . . . . . . . . . . . . . Construction Impeded 2 | . . . 1 . . . . . . . . . . . . . . . 1 . . . . . . . . . . . . . . . . Haulers Reinforced 7 | . . . . . . . . . . 1 . . . . . . . . 1 1 . . . . . . . . . 3 . . . 1 . Active Scanning Responses . | . . . . . . . . . . . . . . . . . . . . . . . . . . . . . . . . . . . . Cargo Convoy Interrupts 1 | . . . . . . . . . . . . . . . 1 . . . . . . . . . . . . . . . . . . . . Stealth | -11 -10 -10 -9 -9 -9 -8 -8 -7 -7 -7 -7 -7 -7 -6 -6 -6 -6 -6 -6 -5 -5 -5 -5 -4 -4 -4 -4 -4 -3 -3 -3 -3 -2 -1 -1 --------- Run | Yrd Mat Min Mat Min Exi Min Mat Fac Gar Fac Low Low Zio Pro Fac Ext Cet Arc Hub Fac Upp Upp War Pro Fac Upp Upp Zhi Pro Res Arm Lab Res Acc Com Distress Signals 64 | . 1 . 6 . . . 1 2 . . . . . . . 2 3 . 3 1 . . . . 2 . . . 1 8 . . 9 6 19 Communications Jammed 150 | . . . . . . . . . . . . . . 2 2 . . . . 5 . . . . 48 . . . 1 3 15 . 1 62 11 Distress Signals 140 | . . . . . . . . . . . . . . . 2 . . . . 5 . . . . 47 . . . . 3 15 . 1 56 11 Times Spotted 650 | . 32 2 45 11 12 4 24 15 20 10 5 7 . 15 28 32 9 13 38 28 3 5 41 6 50 2 . . 1 18 40 . 16 95 23 Peak Tracking Total 13 | . 4 2 5 4 5 4 5 5 4 1 4 4 . 5 6 3 5 2 8 4 1 5 13 3 6 2 . . 1 3 4 . 12 10 4 Tactical Retreats 37 | . 1 . . . . . 1 1 . . . . . 1 5 3 1 . 5 2 . 1 3 . 1 . . . . . 2 . . 9 1 Traps | -11 -10 -10 -9 -9 -9 -8 -8 -7 -7 -7 -7 -7 -7 -6 -6 -6 -6 -6 -6 -5 -5 -5 -5 -4 -4 -4 -4 -4 -3 -3 -3 -3 -2 -1 -1 ------- Run | Yrd Mat Min Mat Min Exi Min Mat Fac Gar Fac Low Low Zio Pro Fac Ext Cet Arc Hub Fac Upp Upp War Pro Fac Upp Upp Zhi Pro Res Arm Lab Res Acc Com Traps Triggered 26 | . 2 . . . . . 5 2 5 2 . . . . 2 . . . 1 1 . . . . 2 . . . . . 1 . . 3 . Indirectly 1 | . . . . . . . . . . . . . . . . . . . . . . . . . . . . . . . 1 . . . . Trap Hack Attempts . | . . . . . . . . . . . . . . . . . . . . . . . . . . . . . . . . . . . . Triggered . | . . . . . . . . . . . . . . . . . . . . . . . . . . . . . . . . . . . . Disarmed . | . . . . . . . . . . . . . . . . . . . . . . . . . . . . . . . . . . . . Reprogrammed . | . . . . . . . . . . . . . . . . . . . . . . . . . . . . . . . . . . . . Reused . | . . . . . . . . . . . . . . . . . . . . . . . . . . . . . . . . . . . . Traps Extracted . | . . . . . . . . . . . . . . . . . . . . . . . . . . . . . . . . . . . . Installed 1 | . . . . 1 . . . . . . . . . . . . . . . . . . . . . . . . . . . . . . . Triggered . | . . . . . . . . . . . . . . . . . . . . . . . . . . . . . . . . . . . . Machines | -11 -10 -10 -9 -9 -9 -8 -8 -7 -7 -7 -7 -7 -7 -6 -6 -6 -6 -6 -6 -5 -5 -5 -5 -4 -4 -4 -4 -4 -3 -3 -3 -3 -2 -1 -1 ---------- Run | Yrd Mat Min Mat Min Exi Min Mat Fac Gar Fac Low Low Zio Pro Fac Ext Cet Arc Hub Fac Upp Upp War Pro Fac Upp Upp Zhi Pro Res Arm Lab Res Acc Com Machines Disabled 88 | . 1 2 3 . 2 6 6 2 8 10 1 1 . . . 1 . 2 21 5 1 . 1 . 1 . . 1 . . 3 1 1 4 4 Max in Single Turn 11 | . 1 2 1 . 1 4 2 2 2 1 1 1 . . . . . 1 11 4 1 . 1 . 1 . . 1 . . 1 1 1 1 1 Garrison Access 6 | . . . . . . . 1 . . . . . . . . . . . . 2 . . . . . . . . . . . . 3 . . Garrison Relay 4 | . . . . . . . . . 4 . . . . . . . . . . . . . . . . . . . . . . . . . . Network Hub 3 | . . . . . . . . . . . . . . . . . . . 3 . . . . . . . . . . . . . . . . Machines Repaired . | . . . . . . . . . . . . . . . . . . . . . . . . . . . . . . . . . . . . Machines Dismantled . | . . . . . . . . . . . . . . . . . . . . . . . . . . . . . . . . . . . . Machines Sabotaged . | . . . . . . . . . . . . . . . . . . . . . . . . . . . . . . . . . . . . Overloaded Fab Kills . | . . . . . . . . . . . . . . . . . . . . . . . . . . . . . . . . . . . . Hacking | -11 -10 -10 -9 -9 -9 -8 -8 -7 -7 -7 -7 -7 -7 -6 -6 -6 -6 -6 -6 -5 -5 -5 -5 -4 -4 -4 -4 -4 -3 -3 -3 -3 -2 -1 -1 --------- Run | Yrd Mat Min Mat Min Exi Min Mat Fac Gar Fac Low Low Zio Pro Fac Ext Cet Arc Hub Fac Upp Upp War Pro Fac Upp Upp Zhi Pro Res Arm Lab Res Acc Com Machines Accessed 127 | . 9 . 17 1 2 . 11 16 2 8 2 1 1 . 9 2 . . . 11 . 1 4 . 12 . . 4 . 7 3 . . 4 . Terminals 58 | . 6 . 12 . . . 8 9 2 3 . 1 . . 1 1 . . . 6 . . . . 6 . . . . 1 1 . . 1 . Fabricators 15 | . . . . . . . . 4 . 3 . . . . 3 . . . . 1 . . . . 2 . . . . 1 1 . . . . Repair Stations 11 | . 1 . 1 . . . 1 1 . 1 . . . . 1 . . . . . . . . . 2 . . . . 1 1 . . 1 . Recycling Units 13 | . 2 . 2 . . . 1 1 . . . . . . 2 1 . . . 1 . . . . . . . . . 2 . . . 1 . Scanalyzers 8 | . . . 2 . . . 1 . . 1 . . . . . . . . . 1 . . . . 1 . . . . 2 . . . . . Garrison Access 7 | . . . . . . . . 1 . . . . . . 2 . . . . 2 . . . . 1 . . . . . . . . 1 . Total Hacks 458 | . 27 . 58 1 2 . 34 49 5 22 2 4 4 . 26 5 . . . 75 . 1 8 . 59 . . 16 . 31 12 . 1 13 3 Successful 243 | . 18 . 29 1 2 . 16 29 4 14 2 4 4 . 12 1 . . . 35 . 1 8 . 26 . . 16 . 14 6 . . 1 . Failed 214 | . 9 . 28 . . . 18 20 1 8 . . . . 14 4 . . . 40 . . . . 33 . . . . 17 6 . 1 12 3 Catastrophic 32 | . . . 2 . . . 2 . 1 3 . . . . 3 . . . . 7 . . . . 3 . . . . 3 2 . 1 4 1 Database Lockouts 1 | . . . 1 . . . . . . . . . . . . . . . . . . . . . . . . . . . . . . . . Manual 213 | . 23 . 34 . 1 . 26 25 3 11 . . . . 9 1 1 . . 37 . . . . 22 . . . . 10 4 . . 4 2 Terminals 248 | . 22 . 45 . . . 31 29 5 7 . 4 . . 6 4 . . . 52 . . . . 28 . . . . 4 2 . 1 5 3 Fabricators 66 | . . . . . . . . 13 . 10 . . . . 10 . . . . 7 . . . . 12 . . . . 9 5 . . . . Repair Stations 37 | . 2 . 5 . . . 1 4 . 3 . . . . 2 . . . . . . . . . 6 . . . . 7 5 . . 2 . Recycling Units 27 | . 3 . 4 . . . 1 1 . . . . . . 5 1 . . . 6 . . . . . . . . . 4 . . . 2 . Scanalyzers 32 | . . . 4 . . . 1 . . 2 . . . . . . . . . 8 . . . . 10 . . . . 7 . . . . . Garrison Access 14 | . . . . . . . . 2 . . . . . . 3 . . . . 2 . . . . 3 . . . . . . . . 4 . Terminal Hacks 95 | . 8 . 9 1 2 . 7 6 3 1 2 4 4 . 2 1 . . . 16 . 1 8 . 4 . . 16 . . . . . . . Record 14 | . . . . . 1 . . . . . 1 4 . . . . . . . . . . 3 . . . . 5 . . . . . . . Part Schematic 14 | . 1 . 2 . . . . 1 . . . . 4 . . . . . . 3 . . . . . . . 3 . . . . . . . Robot Schematic 1 | . 1 . . . . . . . . . . . . . . . . . . . . . . . . . . . . . . . . . . Robot Analysis 9 | . 4 . . . . . . 1 . . . . . . . . . . . . . . . . . . . 4 . . . . . . . Prototype ID Bank 20 | . . . 2 . . . 1 1 . . . . . . . 1 . . . 5 . . 4 . 2 . . 4 . . . . . . . Open Door 5 | . . . . 1 . . . . 1 . 1 . . . . . . . . . . 1 1 . . . . . . . . . . . . Branch Access Points 2 | . . . . . . . . . . 1 . . . . . . . . . . . . . . 1 . . . . . . . . . . Emergency Access Points 2 | . . . . . . . . . 1 . . . . . . . . . . 1 . . . . . . . . . . . . . . . Terminal Index 1 | . . . . . . . . 1 . . . . . . . . . . . . . . . . . . . . . . . . . . . Fabricator Index 1 | . . . . . . . . . . . . . . . . . . . . 1 . . . . . . . . . . . . . . . Scanalyzer Index 1 | . . . . . . . . . . . . . . . . . . . . 1 . . . . . . . . . . . . . . . Alert Level 9 | . . . 3 . . . 3 1 . . . . . . 1 . . . . . . . . . 1 . . . . . . . . . . Unreport Threat 3 | . . . 2 . . . . . . . . . . . 1 . . . . . . . . . . . . . . . . . . . . Locate Traps 5 | . 2 . . . . . 2 . . . . . . . . . . . . 1 . . . . . . . . . . . . . . . Maintenance Status 2 | . . . . . . . . 1 . . . . . . . . . . . 1 . . . . . . . . . . . . . . . Patrol Status 1 | . . . . . . . . . . . . . . . . . . . . 1 . . . . . . . . . . . . . . . Hauler Manifests 1 | . . . . . . . . . . . . . . . . . . . . 1 . . . . . . . . . . . . . . . Registered Components 1 | . . . . . . . . . . . . . . . . . . . . 1 . . . . . . . . . . . . . . . Zone Layout 1 | . . . . . . . 1 . . . . . . . . . . . . . . . . . . . . . . . . . . . . Patrol Navigation 1 | . . . . . . . . . 1 . . . . . . . . . . . . . . . . . . . . . . . . . . Proto ID Catalog 1 | . . . . . 1 . . . . . . . . . . . . . . . . . . . . . . . . . . . . . . Fabricator Hacks 21 | . . . . . . . . 4 . 4 . . . . 4 . . . . 2 . . . . 3 . . . . 3 1 . . . . Network Status 6 | . . . . . . . . 2 . 1 . . . . . . . . . . . . . . 1 . . . . 1 1 . . . . Load Schematic 9 | . . . . . . . . 2 . 1 . . . . 3 . . . . 1 . . . . 1 . . . . 1 . . . . . Build 6 | . . . . . . . . . . 2 . . . . 1 . . . . 1 . . . . 1 . . . . 1 . . . . . Repair Station Hacks 17 | . 2 . 3 . . . . 4 . 2 . . . . . . . . . . . . . . 2 . . . . 2 2 . . . . Scan Component 9 | . 1 . 2 . . . . 2 . 1 . . . . . . . . . . . . . . 1 . . . . 1 1 . . . . Repair 8 | . 1 . 1 . . . . 2 . 1 . . . . . . . . . . . . . . 1 . . . . 1 1 . . . . Recycling Unit Hacks 1 | . . . . . . . . . . . . . . . 1 . . . . . . . . . . . . . . . . . . . . Retrieve Components 1 | . . . . . . . . . . . . . . . 1 . . . . . . . . . . . . . . . . . . . . Scanalyzer 18 | . . . 3 . . . . . . 2 . . . . . . . . . 3 . . . . 7 . . . . 3 . . . . . Insert Component 9 | . . . 1 . . . . . . 1 . . . . . . . . . 1 . . . . 3 . . . . 3 . . . . . Analyze 9 | . . . 2 . . . . . . 1 . . . . . . . . . 2 . . . . 4 . . . . . . . . . . Garrison Access Hacks 3 | . . . . . . . . 1 . . . . . . . . . . . 2 . . . . . . . . . . . . . . . Unlock Access 1 | . . . . . . . . 1 . . . . . . . . . . . . . . . . . . . . . . . . . . . Seal Access 2 | . . . . . . . . . . . . . . . . . . . . 2 . . . . . . . . . . . . . . . Unauthorized Hacks 88 | . 8 . 14 . . . 9 14 1 5 . . . . 5 . . . . 12 . . . . 10 . . . . 6 3 . . 1 . Terminals 51 | . 6 . 11 . . . 6 10 1 . . . . . 2 . . . . 9 . . . . 6 . . . . . . . . . . Track 7 | . . . 2 . . . 1 2 . . . . . . 1 . . . . 1 . . . . . . . . . . . . . . . Botnet 10 | . 1 . 2 . . . 2 2 1 . . . . . . . . . . 2 . . . . . . . . . . . . . . . Disrupt 1 | . . . . . . . 1 . . . . . . . . . . . . . . . . . . . . . . . . . . . . Operators 6 | . . . 2 . . . 1 1 . . . . . . 1 . . . . 1 . . . . . . . . . . . . . . . Skim 27 | . 5 . 5 . . . 1 5 . . . . . . . . . . . 5 . . . . 6 . . . . . . . . . . Fabricators 22 | . . . . . . . . 3 . 4 . . . . 2 . . . . 3 . . . . 3 . . . . 4 3 . . . . Report 4 | . . . . . . . . . . 1 . . . . . . . . . . . . . . 1 . . . . 1 1 . . . . Prioritize 4 | . . . . . . . . . . 1 . . . . 1 . . . . 1 . . . . . . . . . 1 . . . . . Liberate 6 | . . . . . . . . 1 . 1 . . . . . . . . . 1 . . . . 1 . . . . 1 1 . . . . Haulers 7 | . . . . . . . . 1 . 1 . . . . 1 . . . . 1 . . . . 1 . . . . 1 1 . . . . Recompile 1 | . . . . . . . . 1 . . . . . . . . . . . . . . . . . . . . . . . . . . . Repair Stations 5 | . . . . . . . 1 . . 1 . . . . . . . . . . . . . . 1 . . . . 1 . . . 1 . Mechanics 5 | . . . . . . . 1 . . 1 . . . . . . . . . . . . . . 1 . . . . 1 . . . 1 . Recycling Units 8 | . 2 . 2 . . . 1 1 . . . . . . 1 . . . . . . . . . . . . . . 1 . . . . . Recyclers 2 | . . . . . . . . . . . . . . . 1 . . . . . . . . . . . . . . 1 . . . . . Tunnel 6 | . 2 . 2 . . . 1 1 . . . . . . . . . . . . . . . . . . . . . . . . . . . Scanalyzers 2 | . . . 1 . . . 1 . . . . . . . . . . . . . . . . . . . . . . . . . . . . Extract 2 | . . . 1 . . . 1 . . . . . . . . . . . . . . . . . . . . . . . . . . . . Garrison Access . | . . . . . . . . . . . . . . . . . . . . . . . . . . . . . . . . . . . . Data Cores Recovered 2 | . . . . . . . . . . . . . . . . . . . . . . . . . 1 . . . . . . . . 1 . Used 1 | . . . . . . . . . . . . . . . . . . . . . . . . . 1 . . . . . . . . . . Hacking Detections 98 | . 7 . 15 . . . 8 15 1 6 . 1 . . 9 2 . . . 10 . . . . 11 . . . . 6 3 . . 4 . Full Trace Events 12 | . . . 1 . . . 1 2 . 1 . . . . 3 . . . . 1 . . . . 1 . . . . 1 . . . 1 . Feedback Events . | . . . . . . . . . . . . . . . . . . . . . . . . . . . . . . . . . . . . Feedback Blocked . | . . . . . . . . . . . . . . . . . . . . . . . . . . . . . . . . . . . . Robot Schematics Acquired 4 | . 1 . . . . . . . . . . . 3 . . . . . . . . . . . . . . . . . . . . . . Robots Built 1 | . . . . . . . . . . . . . . . . . . . . . . . . . . . . . . 1 . . . . . Authchips . | . . . . . . . . . . . . . . . . . . . . . . . . . . . . . . . . . . . . Time 58 | . . . . . . . . . . . . . . . . . . . . . . . . . . . . . . 58 . . . . . Total Robot Build Rating 3 | . . . . . . . . . . . . . . . . . . . . . . . . . . . . . . 3 . . . . . Part Schematics Acquired 38 | . 1 . 4 . . . 2 1 . 1 . . 20 . . . . . . 4 . . . . 2 . . 3 . . . . . . . Parts Built 7 | . . . . . . . . . . 2 . . . . 2 . . . . 1 . . . . 2 . . . . . . . . . . Authchips 2 | . . . . . . . . . . 1 . . . . 1 . . . . . . . . . . . . . . . . . . . . Time 381 | . . . . . . . . . . 141 . . . . 106 . . . . 76 . . . . 58 . . . . . . . . . . Total Part Build Rating 43 | . . . . . . . . . . 12 . . . . 12 . . . . 5 . . . . 14 . . . . . . . . . . Parts Repaired 8 | . 1 . 1 . . . . 2 . 1 . . . . . . . . . . . . . . 1 . . . . 1 1 . . . . Time 347 | . 26 . 51 . . . . 76 . 38 . . . . . . . . . . . . . . 40 . . . . 54 62 . . . . Parts Recycled . | . . . . . . . . . . . . . . . . . . . . . . . . . . . . . . . . . . . . Recycled Matter . | . . . . . . . . . . . . . . . . . . . . . . . . . . . . . . . . . . . . Retrieved Matter . | . . . . . . . . . . . . . . . . . . . . . . . . . . . . . . . . . . . . Retrieved Components 10 | . . . . . . . . . . . . . . . 10 . . . . . . . . . . . . . . . . . . . . Parts Scanalyzed 6 | . . . 1 . . . . . . 1 . . . . . . . . . 1 . . . . 3 . . . . . . . . . . Part Schematics Acquired 5 | . . . 1 . . . . . . 1 . . . . . . . . . 1 . . . . 2 . . . . . . . . . . Parts Damaged 1 | . . . . . . . . . . . . . . . . . . . . . . . . . 1 . . . . . . . . . . Bothacking | -11 -10 -10 -9 -9 -9 -8 -8 -7 -7 -7 -7 -7 -7 -6 -6 -6 -6 -6 -6 -5 -5 -5 -5 -4 -4 -4 -4 -4 -3 -3 -3 -3 -2 -1 -1 ------------ Run | Yrd Mat Min Mat Min Exi Min Mat Fac Gar Fac Low Low Zio Pro Fac Ext Cet Arc Hub Fac Upp Upp War Pro Fac Upp Upp Zhi Pro Res Arm Lab Res Acc Com Used RIF Installer . | . . . . . . . . . . . . . . . . . . . . . . . . . . . . . . . . . . . . Robots Hacked 7 | . . . . . 3 . . . . . . . . . . . . 1 . . . . . . . . . . . . . . 3 . . Non-combat 2 | . . . . . 2 . . . . . . . . . . . . . . . . . . . . . . . . . . . . . . Combat 5 | . . . . . 1 . . . . . . . . . . . . 1 . . . . . . . . . . . . . . 3 . . Robot Hacks Applied 7 | . . . . . 3 . . . . . . . . . . . . 1 . . . . . . . . . . . . . . 3 . . parse_system 7 | . . . . . 3 . . . . . . . . . . . . 1 . . . . . . . . . . . . . . 3 . . Relay Couplers Released 23 | . . . . . . . 3 . 14 . . . . . . . . . . . . . . . 3 . . . . . . . 3 . . Machine Destruction 20 | . . . . . . . 3 . 14 . . . . . . . . . . . . . . . . . . . . . . . 3 . . Programmers 3 | . . . . . . . . . . . . . . . . . . . . . . . . . 3 . . . . . . . . . . Fabnet Peak Effective % . | . . . . . . . . . . . . . . . . . . . . . . . . . . . . . . . . . . . . Robots Rewired 31 | . . . . . . . . . 3 . . . . 2 . 25 . . . . . . . . . . . . . . 1 . . . . Allies Hacked 3 | . . . . . . . . . . . . . . . . . . . . . . . . . 1 . . . . . 2 . . . . Hacks Repelled . | . . . . . . . . . . . . . . . . . . . . . . . . . . . . . . . . . . . . Allies | -11 -10 -10 -9 -9 -9 -8 -8 -7 -7 -7 -7 -7 -7 -6 -6 -6 -6 -6 -6 -5 -5 -5 -5 -4 -4 -4 -4 -4 -3 -3 -3 -3 -2 -1 -1 -------- Run | Yrd Mat Min Mat Min Exi Min Mat Fac Gar Fac Low Low Zio Pro Fac Ext Cet Arc Hub Fac Upp Upp War Pro Fac Upp Upp Zhi Pro Res Arm Lab Res Acc Com Total Allies 57 | . . 2 . . . . . 2 6 . . . 3 2 . 32 5 . 1 1 . . . . 1 . . . . 1 1 . . . . Largest Group 21 | . . 2 . . . . . 2 6 3 2 . 3 3 2 20 21 5 6 1 . . . . 1 . . . . 1 1 . . . . Highest-Rated Group 1063 | . . 41 . . . . . 64 255 195 160 . 60 60 49 718 1063 480 506 10 . . . . 26 . . . . 26 47 . . . . Highest-Rated Ally 159 | . . 31 . . . . . 32 95 95 95 . 20 29 29 159 159 96 96 10 . . . . 26 . . . . 26 47 . . . . Initial Warlord ECA Mod 94 | . . . . . . . . . . 6 6 6 6 5 5 5 5 5 5 4 4 4 4 3 3 3 3 3 2 2 2 2 1 . . Total Orders 164 | . . . . . . . . . . 1 . . . . 7 15 35 . 19 8 . . 10 . 6 . . . . 3 10 . 1 13 36 STAY 48 | . . . . . . . . . . 1 . . . . . . 25 . 7 . . . 2 . 1 . . . . 1 4 . . . 7 ROAM 1 | . . . . . . . . . . . . . . . . 1 . . . . . . . . . . . . . . . . . . . FOLLOW 19 | . . . . . . . . . . . . . . . . . 9 . 6 . . . . . . . . . . 1 3 . . . . GUARD 6 | . . . . . . . . . . . . . . . . 6 . . . . . . . . . . . . . . . . . . . EXPLORE 25 | . . . . . . . . . . . . . . . . . . . . . . . 5 . . . . . . . . . . 3 17 RETURN 65 | . . . . . . . . . . . . . . . 7 8 1 . 6 8 . . 3 . 5 . . . . 1 3 . 1 10 12 Ally Attacks 395 | . . 4 . . . . . 15 7 23 15 . . 20 3 125 106 11 66 . . . . . . . . . . . . . . . . Total Damage 10754 | . . 42 . . . . . 371 159 900 516 . . 321 59 2961 2131 416 2878 . . . . . . . . . . . . . . . . Kills 63 | . . 1 . . . . . 3 2 5 2 . . 3 . 19 10 3 15 . . . . . . . . . . . . . . . . Allies Corrupted 3 | . . . . . . . . . . . . . . . . . . . 3 . . . . . . . . . . . . . . . . Allies Melted 1 | . . . . . . . . . . . . . . . . 1 . . . . . . . . . . . . . . . . . . . Intel | -11 -10 -10 -9 -9 -9 -8 -8 -7 -7 -7 -7 -7 -7 -6 -6 -6 -6 -6 -6 -5 -5 -5 -5 -4 -4 -4 -4 -4 -3 -3 -3 -3 -2 -1 -1 ------- Run | Yrd Mat Min Mat Min Exi Min Mat Fac Gar Fac Low Low Zio Pro Fac Ext Cet Arc Hub Fac Upp Upp War Pro Fac Upp Upp Zhi Pro Res Arm Lab Res Acc Com Active Infowar (turns) 33631 | 40 160 192 . . . . 949 1578 1466 1194 925 878 2711 917 1710 1577 495 450 1252 1187 883 714 518 568 2020 801 909 461 575 793 1488 828 1200 2672 1520 Optics 7 | . . . . . . . . . . 5 . . . . 2 . . . . . . . . . . . . . . . . . . . . IFF 5107 | . . . . . . . . . . . . . . . . . . . . . 834 684 514 534 . 785 900 293 563 . . . . . . Terrain 22537 | . . . . . . . 768 1262 2 1070 921 774 2648 770 992 . . 447 1019 834 828 508 . 326 1005 777 897 407 571 590 989 827 1195 2110 . Structural 5 | . . . . . . . . . . . . . . . . . . . . . . . . . 5 . . . . . . . . . . Seismic 392 | 40 160 192 . . . . . . . . . . . . . . . . . . . . . . . . . . . . . . . . . Machine Analysis 1757 | . . . . . . . . . . . . . . . 89 . . . . . . . . . 1646 22 . . . . . . . . . Cloaking 7581 | . . . . . . . . . . . . . . . 182 1522 495 . . 120 832 673 9 519 . 786 899 294 567 . 134 . . 106 443 Jamming 30351 | . . . . . . . 181 1473 1466 1194 925 878 2711 917 1709 933 . 403 493 1187 881 713 518 568 2020 801 909 458 575 793 1426 828 1200 2672 1519 Robot Analysis Total 9 | . 4 . . . . . . 1 . . . . . . . . . . . . . . . . . . . 4 . . . . . . . Derelict Logs Recovered 13 | . . 1 . 3 . . . . . . 1 . . 3 . . . . . . 2 1 . . . 1 1 . . . . . . . . Drone Launches 68 | . . . . . . . . . . . . . . . 7 8 1 . 6 8 . . 1 . 6 . . . . 1 3 . 1 12 14 Drone Recoveries 66 | . . . . . . . . . . . . . . . 7 8 1 . 6 8 . . 1 . 6 . . . . 1 3 . 1 11 13 Exploration | -11 -10 -10 -9 -9 -9 -8 -8 -7 -7 -7 -7 -7 -7 -6 -6 -6 -6 -6 -6 -5 -5 -5 -5 -4 -4 -4 -4 -4 -3 -3 -3 -3 -2 -1 -1 ------------- Run | Yrd Mat Min Mat Min Exi Min Mat Fac Gar Fac Low Low Zio Pro Fac Ext Cet Arc Hub Fac Upp Upp War Pro Fac Upp Upp Zhi Pro Res Arm Lab Res Acc Com Turns Passed 43430 | 118 1567 1096 2178 1124 574 558 2142 1578 1466 1194 925 878 2711 917 1714 1785 695 500 1719 1187 883 714 809 568 2020 801 909 461 575 793 1488 828 1200 2672 2083 Spaces Moved 25606 | 58 814 527 1089 612 303 325 1081 816 728 632 508 472 1554 457 839 957 332 102 837 877 773 604 601 492 1205 748 788 330 517 574 907 471 944 1529 1203 Core 14 | 14 . . . . . . . . . . . . . . . . . . . . . . . . . . . . . . . . . . . Treads 10854 | . 490 527 741 612 263 218 1081 816 728 632 508 472 1554 457 652 . 288 102 713 . . . . . . . . . . . . . . . . Legs 14390 | 44 324 . . . 40 107 . . . . . . . . 187 957 44 . 124 877 773 604 601 492 1205 748 788 330 517 574 907 471 944 1529 1203 Wheels 348 | . . . 348 . . . . . . . . . . . . . . . . . . . . . . . . . . . . . . . . Hover . | . . . . . . . . . . . . . . . . . . . . . . . . . . . . . . . . . . . . Flight . | . . . . . . . . . . . . . . . . . . . . . . . . . . . . . . . . . . . . Fastest Speed 50 | 50 120 160 150 160 123 123 160 167 165 165 170 170 170 170 102 100 160 160 100 100 100 100 100 100 100 100 100 100 100 100 100 113 113 114 120 Average Speed 134 | 103 144 196 156 168 158 147 160 168 166 169 170 170 170 176 155 115 162 160 151 100 100 100 100 100 115 100 100 119 100 100 108 113 113 118 122 Slowest Speed 250 | 120 160 240 160 240 240 160 240 246 167 170 170 170 170 250 250 182 180 160 170 100 170 100 170 100 170 170 170 170 170 100 113 113 113 183 194 Overloaded Moves . | . . . . . . . . . . . . . . . . . . . . . . . . . . . . . . . . . . . . Propulsion Burnouts . | . . . . . . . . . . . . . . . . . . . . . . . . . . . . . . . . . . . . Robots Hopped 1 | . . . . . . . . . . . . . . . . . . . . . . . . . 1 . . . . . . . . . . Potential Cave-ins 4 | . . . . . . . . . . . . . . . . . . . . . . . . . . . . . . . . . . 4 . Cave-ins Triggered 1 | . . . . . . . . . . . . . . . . . . . . . . . . . 1 . . . . . . . . . . Teleports 1 | . . . . . . . . . . . . . . . . . . . . . . . . . . . . . . . 1 . . . . Exploration Rate (%) 62 | 4 98 98 98 99 62 64 77 23 70 18 65 52 84 64 23 86 66 78 52 28 87 69 93 72 33 91 89 70 60 17 50 95 38 49 44 Regions Visited 35 Branch Regions 23 Pre-discovered Areas 20 | . 3 . 5 . 1 . 1 3 . . 1 . . . . . . . . 2 1 . . . . . . 3 . . . . . . . Known Exits Taken 18 | . 1 1 . . . 1 1 1 . 1 . . . 1 1 1 . . 1 1 1 . . 1 1 . . . 1 1 . 1 1 . . Unknown Exits Taken 16 | 1 . . 1 1 1 . . . . . 1 1 1 . . . 1 1 . . . 1 1 . . 1 1 1 . . 1 . . 1 . Scrap Searched 30 | . . 2 . 1 . 1 . . . . 2 3 3 3 . . . . . . 3 . . 3 . 4 3 . 2 . . . . . . Spaces Dug 744 | . . . 16 . . . 31 17 53 13 14 3 . 12 39 6 . . 341 6 14 13 4 5 29 4 14 . 4 6 56 . 3 37 4 Terrain Destroyed 1510 | . . 3 40 33 . 22 175 34 114 13 14 4 . 47 39 7 . 6 574 25 15 13 5 6 34 4 20 . 4 6 59 . 3 181 10 Melee 168 | . . . . . . . 2 4 . . 2 3 . . 22 6 . . 10 6 14 13 . 5 27 4 10 . 4 6 5 . 3 22 . Projectile 90 | . . . 2 . . . 3 . 4 . . 1 . . . 1 . 6 1 . 1 . 5 1 7 . 10 . . . 3 . . 41 4 AOE 1252 | . . 3 38 33 . 22 170 30 110 13 12 . . 47 17 . . . 563 19 . . . . . . . . . . 51 . . 118 6 Terrain Rammed . | . . . . . . . . . . . . . . . . . . . . . . . . . . . . . . . . . . . . Walls Destroyed . | . . . . . . . . . . . . . . . . . . . . . . . . . . . . . . . . . . . . Machines Disabled . | . . . . . . . . . . . . . . . . . . . . . . . . . . . . . . . . . . . . Actions | -11 -10 -10 -9 -9 -9 -8 -8 -7 -7 -7 -7 -7 -7 -6 -6 -6 -6 -6 -6 -5 -5 -5 -5 -4 -4 -4 -4 -4 -3 -3 -3 -3 -2 -1 -1 --------- Run | Yrd Mat Min Mat Min Exi Min Mat Fac Gar Fac Low Low Zio Pro Fac Ext Cet Arc Hub Fac Upp Upp War Pro Fac Upp Upp Zhi Pro Res Arm Lab Res Acc Com Total 31781 | 90 1025 576 1376 672 348 379 1313 972 881 703 542 524 1625 526 1110 1539 488 410 1113 1069 840 671 770 535 1589 785 874 377 560 732 1237 759 1047 2020 1704 Wait 2679 | 3 55 17 72 12 . 12 28 72 11 12 2 31 17 16 84 208 125 266 79 70 30 28 100 12 196 18 56 20 28 71 142 254 31 185 316 Move 25568 | 57 813 526 1088 611 302 324 1080 815 727 631 507 471 1553 456 838 956 331 101 836 876 772 603 600 491 1203 747 787 329 516 573 906 470 942 1528 1202 Hop 1 | . . . . . . . . . . . . . . . . . . . . . . . . . 1 . . . . . . . . . . Pick Up 275 | 10 18 9 24 7 1 5 28 14 3 5 4 . 9 . 18 1 3 2 18 14 . . 5 1 4 1 1 2 . 11 6 8 10 19 14 Fast Attach 169 | 3 2 . 5 . . 1 12 4 4 9 3 . 14 1 8 3 10 6 13 1 . . 12 . 6 . . 4 . 4 17 5 4 5 13 Attach 84 | 4 . . 2 . 2 . 3 3 . 1 . . 2 . 7 . . . 5 2 . . 1 . 1 1 . . . 3 2 1 3 16 25 Detach 23 | . . . . . . . . . . . . . . . 2 . 1 . . . . . . . 1 . . . . . 1 1 . 2 15 Swap 669 | . 20 6 39 11 9 9 34 16 11 7 7 3 6 8 51 29 1 8 31 38 14 21 10 15 55 11 4 6 10 16 52 1 19 62 29 Drop 403 | . 19 9 37 7 5 6 30 17 8 12 5 . 23 1 24 5 15 8 26 8 . . 19 2 9 1 . 5 . 13 21 12 18 15 23 Fire 1217 | 12 97 4 97 15 26 17 81 18 65 22 10 16 . 25 53 46 2 16 84 45 5 5 23 9 79 2 13 1 2 27 70 . 17 150 63 Melee 225 | . . . . . 3 . 3 8 . 2 4 3 1 . 25 6 . 1 13 8 15 14 . 5 31 4 10 10 4 11 8 7 3 26 . Ram 3 | 1 . . 2 . . . . . . . . . . . . . . . . . . . . . . . . . . . . . . . . Kick 40 | . 1 . . . . 2 . . . . . . . . . 1 . . . 7 4 . . . 3 . 3 . . 3 . . . 12 4 Crush 57 | . . 5 10 8 . 3 14 5 . 2 . . . . . . . 2 8 . . . . . . . . . . . . . . . . Escape Stasis . | . . . . . . . . . . . . . . . . . . . . . . . . . . . . . . . . . . . . Rewire 367 | . . . . . . . . . 52 . . . . 19 . 284 . . . . . . . . . . . . . . 12 . . . . Trap 1 | . . . . 1 . . . . . . . . . . . . . . . . . . . . . . . . . . . . . . . Miscellaneous . | . . . . . . . . . . . . . . . . . . . . . . . . . . . . . . . . . . . . Route ------- -11/Scrapyard -10/Materials (discovered 6 exits: *Mat x3 / *Min x2 / Sub) -10/Mines (discovered 3 exits: *Mat x2 / Sub) -9/Materials (discovered 5 exits: *Mat x3 / *Min x2) -9/Mines (discovered 4 exits: *Mat x2 / *Exi / *Zio) -9/Exiles -8/Mines -8/Materials (discovered 3 exits: *Fac x3) -7/Factory (discovered 3 exits: Sto / Low / Gar) -7/Garrison (discovered 2 exits: *Fac x2) -7/Factory (discovered 6 exits: *Fac x2 / Sto x2 / *Low x2) -7/Lower Caves -7/Lower Caves -7/Zion -6/Proximity Caves -6/Factory (discovered 8 exits: Fac x4 / Low x2 / *Ext x2) -6/Extension (discovered 3 exits: *Fac x2 / *Cet) -6/Cetus (discovered 2 exits: *Fac / [*Arc]) -6/Archives (discovered 2 exits: *Fac / *Hub) -6/Hub_04(d) (discovered 4 exits: *Fac x4) -5/Factory (discovered 6 exits: *Fac x4 / *Upp x2) -5/Upper Caves -5/Upper Caves (discovered 2 exits: Fac / *War) -5/Warlord -4/Proximity Caves -4/Factory (discovered 6 exits: *Res x4 / *Upp x2) -4/Upper Caves -4/Upper Caves (discovered 2 exits: *Res / *Zhi) -4/Zhirov -3/Proximity Caves -3/Research (discovered 6 exits: Res x3 / *Arm / Qua x2) -3/Armory (discovered 2 exits: Res / [*Lab]) -3/Lab -2/Research (discovered 3 exits: *Acc x2 / [*Tes]) -1/Access (discovered 2 exits: *Sur / *Com) -1/Command (discovered 2 exits: *Sur x2) 0b11 Command History --------- Turn | Location | Event 12 | -11/Scrapyard | Discovered new exit (range 16) 119 | -11/Scrapyard | Entered Materials 145 | -10/Materials | Discovered new exit (range 14) 300 | -10/Materials | Build established: Mutant 319 | -10/Materials | Discovered new exit (range 3) 591 | -10/Materials | Discovered new exit (range 11) 741 | -10/Materials | Identified exit to Materials 741 | -10/Materials | Identified exit to Mines 854 | -10/Materials | Identified exit to Subcaves 854 | -10/Materials | Learned location of 2 exits from Materials 896 | -10/Materials | Learned location of 2 exits from Mines 929 | -10/Materials | Learned Storage emergency access door positions 950 | -10/Materials | Learned 2 Storage zone layouts 981 | -10/Materials | Learned Recycling recycling unit intel 1023 | -10/Materials | Loaded intel: 2 recycling unit locations 1035 | -10/Materials | Repaired Assault Rifle 1240 | -10/Materials | Core integrity fell below 50% 1686 | -10/Materials | Entered Mines 1764 | -10/Mines | Assembled infested the area 2065 | -10/Mines | Learned Materials emergency access door positions 2072 | -10/Mines | Discovered exit to Materials (range 3) 2782 | -10/Mines | Entered Materials 2782 | -9/Materials | Evolved 2 slots: Propulsion x1, Utility x1 2783 | -9/Materials | Identified exit to Materials 3093 | -9/Materials | Build established: Scavenger-Mutant 3310 | -9/Materials | Destroyed 7 combat bots 3344 | -9/Materials | Discovered new exit (range 13) 3831 | -9/Materials | Learned location of Zion (-7) 3900 | -9/Materials | Loaded intel: 11 trap records 3921 | -9/Materials | Learned 4 Recycling zone layouts 3933 | -9/Materials | Loaded intel: 18 interactive machine locations 4448 | -9/Materials | Central database locked down 4476 | -9/Materials | Discovered new exit (range 3) 4795 | -9/Materials | Repaired Imp. Assault Rifle 4960 | -9/Materials | Entered Mines 4996 | -9/Mines | Learned Materials stockpile data 5012 | -9/Mines | Met a Derelict bent on vengeance 5108 | -9/Mines | Learned location of 2 exits from Materials 5136 | -9/Mines | Met a Derelict shopkeep closing up shop 5323 | -9/Mines | Found a hidden stash of uninstalled traps 5410 | -9/Mines | Deemed a non-threat by the Exiles lab entrance 5413 | -9/Mines | Discovered new exit (range 5) 5470 | -9/Mines | A weapon hastily lodged in a ceiling crevice suddenly fell to the ground 5541 | -9/Mines | Learned 2 Materials zone layouts 5775 | -9/Mines | Received a Rocket Launcher from a helpful Derelict 5888 | -9/Mines | A Derelict revealed a hidden shortcut to a safe place 5981 | -9/Mines | Discovered exit to Materials (range 11) 6084 | -9/Mines | Entered Exiles 6123 | -9/Exiles | Met 8R-AWN 6153 | -9/Exiles | Met EX-HEX 6217 | -9/Exiles | Met EX-BIN 6241 | -9/Exiles | Aligned with FarCom system 6242 | -9/Exiles | Given EX-Vault access code 6281 | -9/Exiles | Opened EX-Vault 6324 | -9/Exiles | Warned to stay clear of 0b10 Research branches 6346 | -9/Exiles | Exiles lab attacked by MAIN.C 6410 | -9/Exiles | Found Latent Energy Streamer 6489 | -9/Exiles | Core integrity fell below 50% 6648 | -9/Exiles | Discovered new exit (range 10) 6658 | -9/Exiles | Left Exiles lab with Latent Energy Streamer 6658 | -9/Exiles | Entered Mines 6916 | -8/Mines | Discovered exit to Materials (range 7) 7136 | -8/Mines | Build established: Mutant 7216 | -8/Mines | Entered Materials 7216 | -8/Materials | Evolved 2 slots: Propulsion x1, Weapon x1 7217 | -8/Materials | Identified exit to Factory 7254 | -8/Materials | Garrison activated, responded to threat 7451 | -8/Materials | Garrison activated, responded to threat 7573 | -8/Materials | Discovered exit to Factory (range 9) 7702 | -8/Materials | Build established: Scavenger-Skirmisher 7784 | -8/Materials | Destroyed 8 combat bots 8228 | -8/Materials | Build established: Skirmisher 8376 | -8/Materials | Met 7R-MNS 9045 | -8/Materials | Build established: Scavenger-Skirmisher 9358 | -8/Materials | Entered Factory 9358 | -7/Factory | Evolved 2 slots: Utility x2 9359 | -7/Factory | Caught up to 7R-MNS 9359 | -7/Factory | Identified exit to Storage 9704 | -7/Factory | Garrison activated, responded to threat 9858 | -7/Factory | Build established: Scavenger-Assassin 10228 | -7/Factory | Identified exit to Garrison 10229 | -7/Factory | Build established: Scavenger-Skirmisher 10571 | -7/Factory | Identified exit to Lower Caves 10610 | -7/Factory | Learned location of 1 exit from Upper Caves 10686 | -7/Factory | Learned 2 Extension zone layouts 10690 | -7/Factory | Repaired Arm. Treads 10723 | -7/Factory | Learned Extension trap positions 10736 | -7/Factory | Repaired Arm. Treads 10936 | -7/Factory | Entered Garrison 10963 | -7/Garrison | Triggered checkpoint 11167 | -7/Garrison | Garrison Relay disabled 11237 | -7/Garrison | Triggered checkpoint 11238 | -7/Garrison | Triggered checkpoint 11305 | -7/Garrison | Triggered checkpoint 11386 | -7/Garrison | Discovered new exit (range 11) 11472 | -7/Garrison | Triggered checkpoint 11534 | -7/Garrison | Garrison Relay disabled 11658 | -7/Garrison | Triggered checkpoint 11844 | -7/Garrison | Discovered new exit (range 10) 11922 | -7/Garrison | Triggered checkpoint 11950 | -7/Garrison | Triggered checkpoint 11975 | -7/Garrison | Found embedded Infiltrators 12010 | -7/Garrison | Rescued a captive Derelict 12102 | -7/Garrison | Garrison Relay disabled 12402 | -7/Garrison | Entered Factory 12402 | -7/Factory | Accompanied by 3 allies 12531 | -7/Factory | Fabricated Arm. Medium Treads (x2) 12750 | -7/Factory | Discovered new exit (range 16) 12788 | -7/Factory | Found Powered Armor 12990 | -7/Factory | Discovered new exit (range 15) 13127 | -7/Factory | Repaired Arm. Treads 13596 | -7/Factory | Entered Lower Caves 13596 | -7/Lower Caves | Accompanied by 2 allies 13603 | -7/Lower Caves | Met a Warlord Commander 13604 | -7/Lower Caves | Learned location of Warlord (-5) 13605 | -7/Lower Caves | Warlord Commander delivered Encrypted Comm Array 13874 | -7/Lower Caves | Spotted B-75 Beast 13900 | -7/Lower Caves | Allies destroyed B-75 Beast 14048 | -7/Lower Caves | Found Alien Artifact 14048 | -7/Lower Caves | Identified Dimensional Node Initializer 14048 | -7/Lower Caves | Initialized slip node 14201 | -7/Lower Caves | Discovered new exit (range 8) 14248 | -7/Lower Caves | Learned Factory machine intel 14521 | -7/Lower Caves | Entered another Lower Caves area 14633 | -7/Lower Caves | Build established: Scavenger-Mutant 14925 | -7/Lower Caves | Encountered a Warlord checkpoint 15135 | -7/Lower Caves | Discovered new exit (range 3) 15308 | -7/Lower Caves | Attracted the attention of an 0b10 base 15355 | -7/Lower Caves | Destroyed 7 combat bots 15360 | -7/Lower Caves | Learned Research emergency access door positions 15360 | -7/Lower Caves | Learned Factory stockpile data 15399 | -7/Lower Caves | Entered Zion 15489 | -7/Zion | System corruption cleaned by Quarantine Array 15650 | -7/Zion | Discovered new exit (range 15) 15667 | -7/Zion | Given the Hacking Drone Bay 15674 | -7/Zion | Found Prototype Device 15674 | -7/Zion | Identified Hacking Drone Bay 15781 | -7/Zion | Given A8's code to call for help 15861 | -7/Zion | Learned Factory emergency access door positions 15870 | -7/Zion | Build established: Scavenger-Skirmisher 16378 | -7/Zion | Build established: Scavenger-Mutant 16546 | -7/Zion | Gained Derelict followers 16817 | -7/Zion | Found Prototype Processor 16817 | -7/Zion | Identified Exp. Core Analyzer 16835 | -7/Zion | Found Exp. Core Analyzer 16845 | -7/Zion | Found Prototype Processor 16845 | -7/Zion | Identified Exp. Signal Interpreter 16852 | -7/Zion | Found Prototype Processor 16852 | -7/Zion | Identified Exp. Armor Integrity Analyzer 17109 | -7/Zion | Build established: Scavenger-Gunner 17544 | -7/Zion | Found Prototype Hackware 17544 | -7/Zion | Identified Exp. System Shield 17851 | -7/Zion | Rebuked by Imprinter 18110 | -7/Zion | Entered Proximity Caves 18110 | -6/Proximity Caves | Accompanied by 3 allies 18226 | -6/Proximity Caves | Identified exit to Factory 18279 | -6/Proximity Caves | Learned 8 Factory zone layouts 18292 | -6/Proximity Caves | Learned Factory terminal intel 18382 | -6/Proximity Caves | Attracted the attention of an 0b10 checkpoint 18567 | -6/Proximity Caves | Attracted the attention of an 0b10 outpost 18572 | -6/Proximity Caves | Lost 3 allies 18888 | -6/Proximity Caves | Spotted B-75 Beast 18904 | -6/Proximity Caves | Destroyed B-75 Beast 19027 | -6/Proximity Caves | Entered Factory 19027 | -6/Factory | Accompanied by 2 allies 19027 | -6/Factory | Evolved 2 slots: Power x1, Utility x1 19028 | -6/Factory | Identified exit to Lower Caves 19032 | -6/Factory | Loaded intel: 270 machine locations 19033 | -6/Factory | Loaded intel: 27 terminal locations 19108 | -6/Factory | Fabricated Arm. Medium Treads (x2) 19493 | -6/Factory | Identified exit to Factory 19652 | -6/Factory | Destroyed 7 combat bots 20184 | -6/Factory | Identified exit to Extension 20378 | -6/Factory | Cargo convoy interrupted 20496 | -6/Factory | Found Prototype Processor 20497 | -6/Factory | Identified Exp. Melee Analysis Suite 20563 | -6/Factory | Found Exp. Melee Analysis Suite 20566 | -6/Factory | Found Exp. Melee Analysis Suite 20636 | -6/Factory | Found Prototype Protection 20636 | -6/Factory | Identified Active Cooling Armor 20741 | -6/Factory | Entered Extension 20743 | -6/Extension | Loaded intel: 14 trap records 21067 | -6/Extension | Rescued a captive Derelict 21068 | -6/Extension | Rescued a captive Derelict 21101 | -6/Extension | Rescued a captive Derelict 21159 | -6/Extension | Rescued a captive Derelict 21452 | -6/Extension | Spotted B-75 Beast 21461 | -6/Extension | Spotted B-75 Beast 21487 | -6/Extension | Destroyed B-75 Beast 21519 | -6/Extension | Lost 11 allies 21550 | -6/Extension | Rescued A7 21908 | -6/Extension | Rescued a captive Derelict 21909 | -6/Extension | Rescued a captive Derelict 22177 | -6/Extension | Identified exit to Cetus 22337 | -6/Extension | Build established: Commander-Mutant 22526 | -6/Extension | Entered Cetus 22526 | -6/Cetus | Accompanied by 20 allies (A7) 22531 | -6/Cetus | Acquired a Cetus Manufacturing Module code from A7 22552 | -6/Cetus | Spotted Cetus Guard 22553 | -6/Cetus | Spotted Cetus Guard 22562 | -6/Cetus | Spotted Cetus Guard 22565 | -6/Cetus | Spotted Cetus Guard 22565 | -6/Cetus | Allies destroyed Cetus Guard 22576 | -6/Cetus | Allies destroyed Cetus Guard 22580 | -6/Cetus | Allies destroyed Cetus Guard 22608 | -6/Cetus | Lost 4 allies 22679 | -6/Cetus | Build established: Commander-Gunner 22702 | -6/Cetus | Started Cetus Manufacturing Module 22722 | -6/Cetus | Escorted A7 to Cetus Mainframe 22727 | -6/Cetus | Manufactured an Enhanced Grunt 22752 | -6/Cetus | Manufactured an Enhanced Grunt 22777 | -6/Cetus | Manufactured an Enhanced Grunt 22802 | -6/Cetus | Manufactured an Enhanced Grunt 22827 | -6/Cetus | Manufactured an Enhanced Grunt 22860 | -6/Cetus | Discovered new exit (range 15) 23016 | -6/Cetus | Spotted Cetus Guard 23016 | -6/Cetus | Spotted Cetus Guard 23029 | -6/Cetus | Spotted Cetus Guard 23066 | -6/Cetus | Extracted ID and sensor layout for unrecognized location from A7's data core 23099 | -6/Cetus | Allies destroyed Cetus Guard 23103 | -6/Cetus | Spotted Cetus Guard 23110 | -6/Cetus | Allies destroyed Cetus Guard 23120 | -6/Cetus | Discovered exit to Factory (range 15) 23128 | -6/Cetus | Met Revision 17 23131 | -6/Cetus | Lost 6 allies 23221 | -6/Cetus | Entered Archives 23221 | -6/Archives | Accompanied by 5 allies 23293 | -6/Archives | Discovered new exit (range 16) 23357 | -6/Archives | Discovered exit to Factory (range 15) 23580 | -6/Archives | Build established: Scavenger-Gunner 23721 | -6/Archives | Entered Hub_04(d) 23721 | -6/Hub_04(d) | Accompanied by 5 allies 24088 | -6/Hub_04(d) | Build established: Scavenger-Assassin 24749 | -6/Hub_04(d) | Network Hub disabled 24862 | -6/Hub_04(d) | Spotted Lightning 24865 | -6/Hub_04(d) | Spotted Lightning 24874 | -6/Hub_04(d) | Spotted Lightning 24883 | -6/Hub_04(d) | System corruption reached 10% 24890 | -6/Hub_04(d) | Destroyed Lightning 24900 | -6/Hub_04(d) | Destroyed Lightning 24923 | -6/Hub_04(d) | Found Prototype Device 24923 | -6/Hub_04(d) | Identified Exp. EM Shield 25030 | -6/Hub_04(d) | Destroyed Lightning 25035 | -6/Hub_04(d) | Found Exp. Targeting Computer 25066 | -6/Hub_04(d) | Network Hub disabled 25066 | -6/Hub_04(d) | Network Hub disabled 25109 | -6/Hub_04(d) | Spotted Lightning 25109 | -6/Hub_04(d) | Spotted Lightning 25121 | -6/Hub_04(d) | First assault squad dispatched 25123 | -6/Hub_04(d) | Spotted Lightning 25152 | -6/Hub_04(d) | Destroyed Lightning 25198 | -6/Hub_04(d) | Destroyed Lightning 25222 | -6/Hub_04(d) | Build established: Scavenger-Tank 25223 | -6/Hub_04(d) | Destroyed 11 combat bots 25239 | -6/Hub_04(d) | Destroyed Lightning 25293 | -6/Hub_04(d) | Found Prototype Device 25293 | -6/Hub_04(d) | Identified Exp. Phase Shifter 25303 | -6/Hub_04(d) | Found Prototype Energy Cannon 25303 | -6/Hub_04(d) | Identified EMDS 25440 | -6/Hub_04(d) | Entered Factory 25440 | -5/Factory | Evolved 2 slots: Propulsion x1, Utility x1 25573 | -5/Factory | Identified exit to Factory 25583 | -5/Factory | Identified exit to Upper Caves 25932 | -5/Factory | Build established: Scavenger-Skirmisher 26051 | -5/Factory | Loaded intel: 269 machine locations 26062 | -5/Factory | Learned location of 3 exits from Research 26063 | -5/Factory | Learned location of 1 exit from Quarantine 26064 | -5/Factory | Learned Research garrison access intel 26070 | -5/Factory | Learned Research trap positions 26085 | -5/Factory | Learned Research stockpile data 26469 | -5/Factory | Fabricated Exp. Utility Shielding (x1) 26627 | -5/Factory | Entered Upper Caves 26628 | -5/Upper Caves | Identified exit to Upper Caves 27178 | -5/Upper Caves | Build established: Scavenger-Mutant 27304 | -5/Upper Caves | Learned Factory stockpile data 27384 | -5/Upper Caves | Learned location of Armory (-3) 27506 | -5/Upper Caves | Attacked by a delusional Derelict stockpiling parts 27510 | -5/Upper Caves | Entered another Upper Caves area 27687 | -5/Upper Caves | Learned location of 1 exit from Factory 27711 | -5/Upper Caves | Spotted B-75 Beast 28000 | -5/Upper Caves | Discovered new exit (range 10) 28224 | -5/Upper Caves | Entered Warlord 28344 | -5/Warlord | Build established: Scavenger-Gunner 28511 | -5/Warlord | Found Prototype Reactor 28511 | -5/Warlord | Identified Vortex Chain Reactor 28620 | -5/Warlord | Visited the Vortex Lab 28624 | -5/Warlord | Found Prototype Energy Gun 28624 | -5/Warlord | Identified Vortex Rifle 28630 | -5/Warlord | Found Prototype Energy Cannon 28630 | -5/Warlord | Identified Vortex Driver 28637 | -5/Warlord | Warlord's base attacked by MAIN.C 28647 | -5/Warlord | Found Vortex Driver 28695 | -5/Warlord | Met Warlord 28884 | -5/Warlord | Warlord forces counterattacked 28993 | -5/Warlord | Spotted Striker 28999 | -5/Warlord | Destroyed Striker 29006 | -5/Warlord | Spotted Executioner 29018 | -5/Warlord | Discovered new exit (range 14) 29033 | -5/Warlord | Entered Proximity Caves 29038 | -4/Proximity Caves | Lost 3 allies 29601 | -4/Proximity Caves | Entered Factory 29601 | -4/Factory | Evolved 2 slots: Utility x2 29602 | -4/Factory | Identified exit to Research 29912 | -4/Factory | Crushed by falling debris 30468 | -4/Factory | Identified exit to Upper Caves 30695 | -4/Factory | Repaired Exp. Utility Shielding 30979 | -4/Factory | Fabricated Lrn. Terrain Scanner (x2) 31524 | -4/Factory | Learned location of 1 exit from Research 31589 | -4/Factory | Learned Quarantine stockpile data 31621 | -4/Factory | Entered Upper Caves 31956 | -4/Upper Caves | Learned Research garrison access intel 32067 | -4/Upper Caves | Build established: Infiltrator-Mutant 32396 | -4/Upper Caves | Discovered new exit (range 12) 32422 | -4/Upper Caves | Entered another Upper Caves area 32422 | -4/Upper Caves | Discovered exit to Research (range 8) 32721 | -4/Upper Caves | Build established: Infiltrator-Gunner 33255 | -4/Upper Caves | Discovered new exit (range 12) 33331 | -4/Upper Caves | Entered Zhirov 33331 | -4/Zhirov | Discovered new exit (range 3) 33352 | -4/Zhirov | Met Zhirov 33374 | -4/Zhirov | Learned location of Quarantine (-3) 33374 | -4/Zhirov | Learned location of Command (-1) 33387 | -4/Zhirov | Zhirov requested help retrieving the SGEMP Prototype 33403 | -4/Zhirov | Build established: Infiltrator-Mutant 33406 | -4/Zhirov | Found Alien Artifact 33406 | -4/Zhirov | Identified Integrated Reactor 33406 | -4/Zhirov | Installed Integrated Reactor, increased core energy generation (+10) 33450 | -4/Zhirov | Found Alien Artifact 33600 | -4/Zhirov | Cloak Generator disabled 33600 | -4/Zhirov | Attacked by Zhirov 33610 | -4/Zhirov | Enhanced Grunts warped into view 33626 | -4/Zhirov | Zhirov detonated his lab 33792 | -4/Zhirov | Entered Proximity Caves 34367 | -3/Proximity Caves | Entered Research 34367 | -3/Research | Evolved 2 slots: Propulsion x1, Utility x1 34368 | -3/Research | Identified exit to Research 34368 | -3/Research | Identified exit to Quarantine 34369 | -3/Research | Identified exit to Armory 34370 | -3/Research | Loaded intel: 82 trap records 34373 | -3/Research | Loaded intel: 2 garrison access locations 34506 | -3/Research | Found Prototype Launcher 34567 | -3/Research | Revision forces began assault on 0b10 34625 | -3/Research | Met up with Revision 17++ 34658 | -3/Research | Build established: Scavenger-Gunner 35038 | -3/Research | Repaired Enh. Biometal Leg 35067 | -3/Research | Research terminal network offline 35107 | -3/Research | Fabricated O-24 Administrator (x1) 35123 | -3/Research | Identified Transdimensional Reconstructor 35123 | -3/Research | Identified Com. Tesla Bomb Launcher 35160 | -3/Research | Entered Armory 35160 | -3/Armory | Accompanied by 1 ally 35314 | -3/Armory | Found Prototype Launcher 35314 | -3/Armory | Identified Mni. Smartbomb Launcher 35318 | -3/Armory | Found Prototype Launcher 35318 | -3/Armory | Identified Adv. Micro-nuke Launcher 35855 | -3/Armory | Discovered exit to Research (range 19) 36158 | -3/Armory | Warped through subspace to slip node 36158 | -3/Armory | Discovered new exit (range 1) 36217 | -3/Armory | Found Prototype Device 36217 | -3/Armory | Identified Exp. Shield Generator 36594 | -3/Armory | Repaired Adv. Transmission Jammer 36648 | -3/Armory | Entered Lab 36648 | -3/Lab | Discovered exit to Research (range 9) 36685 | -3/Lab | Hidden lab's door opened automatically 36685 | -3/Lab | Sensor layout match revealed 36686 | -3/Lab | Gained access to the hidden lab's interior 36957 | -3/Lab | Build established: Scavenger-Mutant 36993 | -3/Lab | Found Transdimensional Reconstructor 37002 | -3/Lab | Found Integrated Reactor 37011 | -3/Lab | Found Alien Artifact 37039 | -3/Lab | Installed Integrated Reactor, increased core energy generation (+10) 37130 | -3/Lab | Found Prototype Protection 37130 | -3/Lab | Identified Hvy. Regenerative Plating 37134 | -3/Lab | Found Prototype Energy Cannon 37134 | -3/Lab | Identified Potential Cannon 37138 | -3/Lab | Found Prototype Energy Gun 37138 | -3/Lab | Identified Hyp. EM Gauss Rifle 37394 | -3/Lab | Found Prototype Special Weapon 37394 | -3/Lab | Identified Gui. Remote Datajack 37476 | -3/Lab | Entered Research 37476 | -2/Research | Warlord forces began assault on 0b10 37476 | -2/Research | Evolved 2 slots: Utility x1, Weapon x1 37477 | -2/Research | Loaded intel: 4 garrison access locations 37501 | -2/Research | Distinguished unit "Offensive Angels" dispatched to help 37586 | -2/Research | Research machine network offline 37605 | -2/Research | Found Exp. Signal Interpreter 37677 | -2/Research | Discovered new exit (range 10) 37688 | -2/Research | Identified exit to Access 37722 | -2/Research | Met up with Warlord 37793 | -2/Research | Discovered new exit (range 14) 37876 | -2/Research | Spotted Striker 37880 | -2/Research | Spotted Executioner 37880 | -2/Research | Discovered exit to Access (range 13) 37880 | -2/Research | Spotted Executioner 37925 | -2/Research | Lost 11 allies 38156 | -2/Research | Found Prototype Device 38156 | -2/Research | Identified Adv. Kinecellerator 38191 | -2/Research | Build established: Scavenger-Gunner 38237 | -2/Research | Borebot progress halted 38261 | -2/Research | Borebot progress halted 38476 | -2/Research | Warlord invited to help at Command 38476 | -2/Research | Given Cave Seal Controls access code 38484 | -2/Research | Spotted B-90 Cyclops 38676 | -2/Research | Entered Access 38676 | -1/Access | Evolved 2 slots: Power x1, Propulsion x1 38935 | -1/Access | Destroyed 8 combat bots 39185 | -1/Access | Identified exit to Surface 39629 | -1/Access | Destroyed 14 combat bots 39682 | -1/Access | Build established: Scavenger-Assassin 40176 | -1/Access | First assault squad dispatched 40591 | -1/Access | Lost 3 parts (1p1u1w) 40797 | -1/Access | System corruption reached 10% 41045 | -1/Access | Discovered new exit (range 16) 41348 | -1/Access | Entered Command 41598 | -1/Command | First assault squad dispatched 41654 | -1/Command | Build established: Scavenger-Gunner 41730 | -1/Command | Found Gamma Bomb Array 41753 | -1/Command | Disengaged cave seal 41758 | -1/Command | Welcomed Warlord to Command 41809 | -1/Command | Lost 3 allies 41923 | -1/Command | Disengaged cave seal 41923 | -1/Command | Derelicts emerged from the dark tunnel 41962 | -1/Command | Build established: Gunner 42406 | -1/Command | Warlord commented on Warlord statues 42412 | -1/Command | Combat Programmer assimilated allied ZX-7JT(i) 42412 | -1/Command | Spotted M Guard 42413 | -1/Command | Spotted Combat Programmer 42415 | -1/Command | Destroyed Combat Programmer 42425 | -1/Command | Spotted M Guard 42425 | -1/Command | Spotted Combat Programmer 42431 | -1/Command | Destroyed X1-UGM(L) 42447 | -1/Command | Destroyed Combat Programmer 42467 | -1/Command | All MAIN.C guards destroyed 42468 | -1/Command | Lost 9 allies 42487 | -1/Command | Found Prototype Device 42490 | -1/Command | Identified AEGIS Remote Shield 42692 | -1/Command | Met MAIN.C 42724 | -1/Command | 0b10 Conduit disabled 42732 | -1/Command | Destroyed MAIN.C Shell 42735 | -1/Command | MAIN.C activated Command garrisons 42767 | -1/Command | Destroyed MAIN.C 42775 | -1/Command | Lost 4 parts (1p2u1w) 42789 | -1/Command | Discovered exit to Surface (range 30) 42789 | -1/Command | Discovered exit to Surface (range 97) 42789 | -1/Command | Extracted map data and part IDs from MAIN.C's data core 42799 | -1/Command | Build established: Mutant 43091 | -1/Command | Found Exp. System Purifier 43095 | -1/Command | Found Centrium Heavy Armor Plating 43114 | -1/Command | Found Zero-point Reactor 43383 | -1/Command | Build established: Infiltrator-Gunner 43431 | *** | Establishing 0b11! Last Messages --------------- 43150_ Exp. System Purifier purges 1% system corruption (14%). 43167_ System corrupted: Matter fused (-10). 43168_ Exp. System Purifier purges 1% system corruption (13%). 43173_ Exp. System Purifier purges 1% system corruption (12%). 43176_ Exp. System Purifier purges 1% system corruption (11%). 43180_ Exp. System Purifier purges 1% system corruption (10%). 43182_ Exp. System Purifier purges 1% system corruption (9%). 43186_ Exp. System Purifier purges 1% system corruption (8%). 43187_ Exp. System Purifier purges 1% system corruption (7%). 43195_ Exp. System Purifier purges 1% system corruption (6%). 43200_ Exp. System Purifier purges 1% system corruption (5%). 43208_ Exp. System Purifier purges 1% system corruption (4%). 43221_ Exp. System Purifier purges 1% system corruption (3%). 43227_ Exp. System Purifier purges 1% system corruption (2%). 43229_ Exp. System Purifier purges 1% system corruption (1%). 43230_ Exp. System Purifier purges 1% system corruption (0%). 43253_ K-01 Serf collects debris. 43322_ Wave Inhibitor disabled. 43370_ Acquired 37 matter. [Achievement: Commander 0b11] Map ----- +----------------------------------------------------+ | ?????????????????????????????????????????????????? | | ?????????????????????????????????????????????????? | | ?????????????????????????????????????????????????? | | ?????????????????????????????????????????????????? | | ?????????????????????????????????????????????????? | | ?????????????????????????????????????????????????? | | ?????????????????????????????????????????????????? | | ?????????????????????????????????????????????????? | | ?????????????????????????????????????????????????? | | ?????????????????????????????????????????????????? | | ?????????????????????????????????????????????????? | | ?????????????????????????????????????????????????? | | ?????????????????????????????????????????????????? | | ?????????????????????????????????????????????????? | | ?????????????????????????????????????????????????? | | ?????????????????????????????????????????????????? | | ?????????????????????????????????????????????????? | | ?????????????????????????????????????????????????? | | ?????????????????????????????????????????????????? | | ?????????????????????????????????????????????????? | | ?????????????????????????????????????????????????? | | ?????????????????????????????????????????######### | | ?????????????????????????????????????????#???????? | | ???????????????????????######????????????#?####### | | ???????????????????????# #????????????#?# """"" | | ???????????????????????# @ #????????????#?#" | | ???????????????????????# #????????????#?#" """ | | ???????????????????????### #????????????#?#" """" | | ?????????????????????????# #????????????#?#" " | | #####????????????????????# #????????????#?#"" "" | | #????????????????????# #????????????#?#"" "" | | ########?????????????# #????????????#?# " "" | | # #?????????????# ##???????????#?# " | | # #######???????#^^;#???????????#?# " | | # + #???????# #######??????#?#"""""" | | # ##### #???????# # #??????#?#"" | | # #???# #???????# # #??????#?# | | # #####+######??# # #??????#?# | | + ## ! #??# # ########## | | # ## #??# # # | | # ] ## #??# # + | | # ## """ #### # # | | # ## "Y + # # ######## """ | | + ## """ #### # # #????#?# " " | | # ## #??# # # #????#?# " | | # ## #??# # # #????#?####### | | ##+####+########+######### #! # #????#???????? | | = ==! ##+#### #????######### | | %= %!! %####+####?????????? | | =![ =% # #?????????? | +----------------------------------------------------+ Best States ------------- Heat Dissipation 156 Coolant Potential 120 Energy Generation 93 Energy Capacity 1165 Matter Stores 300 Matter Capacity 300 Sight Range 23 Terrain Scan Range 24 Terrain Scan Density 210 Jamming Range 16 Cloak Strength 3 Base Temperature (-) 200 Armor Coverage 1200 Resistance: KI 20 Resistance: TH 10 Resistance: EM 75 Utility Shielding 90 Point Defense Rating 480 Weapon Cycling 20 Evasion (%) 55 Targeting Accuracy 12 Target Analysis 8 Core Analysis 8 Recoil Reduction 4 Kinecelleration 50 Offensive Hacking 10 Defensive Hacking 10 Authchip Count 1 Item Schematics ----------------- Huge Storage Unit | -10/Materials | Hacked Cmb. Airjet | -9/Materials | Scanalyzed Hcp. Storage Unit | -9/Materials | Hacked Plasma Cutter | -9/Materials | Hacked Lrg. Storage Unit | -9/Materials | Extracted EM Shotgun | -8/Materials | Extracted Imp. Utility Shielding | -8/Materials | Extracted Arm. Medium Treads | -7/Factory | Hacked Force Field | -7/Factory | Scanalyzed Battle Cannon | -7/Zion | Free Flamer | -7/Zion | Free Hvy. Riot Gun | -7/Zion | Free Enh. Flamer | -7/Zion | Free Matter Filter | -7/Zion | Archive Matter Compressor | -7/Zion | Archive Microactuators | -7/Zion | Archive Lgt. Angular Momentum Engine | -7/Zion | Archive Hvy. Rocket Launcher | -7/Zion | Archive Fission Core | -7/Zion | Archive Shock Absorption System | -7/Zion | Archive Imp. Launcher Guidance Computer | -7/Zion | Archive Wave Gun | -7/Zion | Archive Imp. Melee Analysis Suite | -7/Zion | Archive Hvy. Plasma Cannon | -7/Zion | Archive System Guard | -7/Zion | Archive Kinecellerator | -7/Zion | Archive Imp. EM Pulse Cannon | -7/Zion | Archive Angular Momentum Engine | -7/Zion | Archive Lrn. Phase Cannon | -7/Zion | Archive Imp. Cryofiber Web | -5/Factory | Hacked Lrn. Terrain Scanner | -5/Factory | Hacked Enh. Biometal Leg | -5/Factory | Scanalyzed Exp. Utility Shielding | -5/Factory | Hacked Cld. Plasma Rifle | -4/Factory | Scanalyzed Exp. Heat Sink | -4/Factory | Scanalyzed Assault Drone Bay | -4/Zhirov | Free Exp. Optical Array | -4/Zhirov | Free Imp. Arc Thrower | -4/Zhirov | Free Robot Schematics ------------------ M-13 Machinist | -10/Materials | Hacked G-47 Trooper | -7/Zion | Archive O-24 Administrator | -7/Zion | Archive T-07 Excavator | -7/Zion | Archive Fabricated ------------ Arm. Medium Treads | x2 | -7/Factory | Authchip Arm. Medium Treads | x2 | -6/Factory | Authchip Exp. Utility Shielding | x1 | -5/Factory Lrn. Terrain Scanner | x2 | -4/Factory O-24 Administrator | x1 | -3/Research Repaired ---------- Assault Rifle | 35% | -10/Materials Imp. Assault Rifle | 37% | -9/Materials Arm. Treads | 55% | -7/Factory Arm. Treads | 62% | -7/Factory Arm. Treads | 50% | -7/Factory Exp. Utility Shielding | 15% | -4/Factory Enh. Biometal Leg | 16% | -3/Research Adv. Transmission Jammer | 36% | -3/Armory Alien Tech Used ----------------- Dimensional Node Initializer Integrated Reactor Transdimensional Reconstructor Achievements -------------- Commander 0b11 Challenges ------------ None Game ------ Seed ActiveDrainedCyclogen Manual? 0 Play Time 11:27:34 Cumulative 450.1 hours Start 2025.08.15 @ 15:06:11 End 2025.08.29 @ 21:01:49 Sessions 67 Manual Loads 0 Difficulty Rogue Special Mode None Game No. 184 Rogue 184 Adventurer 0 Explorer 0 Win Type 1 Total 20 Types 12/1/3/2/0/1/0/1/0/0 Lore% 87 Gallery% 80 Achievement% 72 Wizard Run 0 Options --------- Layout 0 ASCII 0 Keyboard 1 Movement Numpad Keybinds 0 Fullscreen 2 Font 18/SmallcapsGlow Map View 76x50 Zoom Use 0% Tactical HUD 1 Map Filters NONE Filters NONE Steam 1 RUN: c383cf96-e3be-418f-94d9-3092fe44de61